{"text_format":"1","workbook":"xlsx","n_sheets":9,"sheets":["Kategorie I. - 2011","Kategorie I. - 2010","Kategorie II. - 2009","Kategorie II. - 2008","Kategorie II. - 2007","Kategorie III. - 2006","Kategorie III. - 2005 a starší","Družstva","List1"],"not_rendered":{"charts":0,"images":6,"macros":1,"external_links":0,"defined_names":5,"comments":0,"pivot_tables":0},"unopened":[],"bounds":{"document_bytes":16777216,"sheet_cells":100000,"rows_first":2000,"rows_last":500,"rows_between":2000,"halvings":0,"cell_chars":16384,"cell_head_chars":4096},"cells_cut":0,"cells_raw":0,"read":"whole","date_system":"1900"}

{"sheet":"Kategorie I. - 2011","index":0,"n_rows":30,"n_cols":20,"rows_kept":30,"cut":false,"hidden":false,"merged":[]}
[null,null,null,null,null,null,"Memoriál Petry Urbáškové - 23. ročník"]
[null,null,null,null,null,null,"2018-04-24"]
[null,null,null,null,null,null,"Kategorie I."]
[]
["čítač","Oddíl","Poř."," ",null,"Ročník","Oddíl","D","E","Pen.","S","D","E","Pen.","S","D","E","Pen.","S","Celkem"]
[{"$f":"IF(T6=T7,C6&\" - \"&C7,IF(T6=T5,C5&\" - \"&C6,C6))","v":1},{"$f":"G6","v":"KSG SK Přerov"},1,"Kubová","Barbora",2011,"KSG SK Přerov",0,8.85,null,{"$f":"IF(SUM(H6:I6)>0,(H6+I6-J6),0)","v":8.85},0,8.3000000000000007,null,{"$f":"IF(SUM(L6:M6)>0,(L6+M6-N6),0)","v":8.3000000000000007},0,7.77,null,{"$f":"IF(SUM(P6:Q6)>0,(P6+Q6-R6),0)","v":7.77},{"$f":"SUM(K6,O6,S6)","v":24.919999999999998}]
[2,{"$f":"G7","v":"TJ Sokol M.Ostrava 1"},2,"Novotná ","Sára Anna",2011,"TJ Sokol M.Ostrava 1",0,8.6,null,{"$f":"IF(SUM(H7:I7)>0,(H7+I7-J7),0)","v":8.6},0,7.8,null,{"$f":"IF(SUM(L7:M7)>0,(L7+M7-N7),0)","v":7.8},0,6.83,null,{"$f":"IF(SUM(P7:Q7)>0,(P7+Q7-R7),0)","v":6.83},{"$f":"SUM(K7,O7,S7)","v":23.229999999999997}]
[3,"TJ Sokol M.Ostrava 1",3,"Švrčková","Anita",2011,"TJ Sokol M.Ostrava 1",0,8.85,null,{"$f":"IF(SUM(H8:I8)>0,(H8+I8-J8),0)","v":8.85},0,7.75,null,{"$f":"IF(SUM(L8:M8)>0,(L8+M8-N8),0)","v":7.75},0,6.53,null,{"$f":"IF(SUM(P8:Q8)>0,(P8+Q8-R8),0)","v":6.53},{"$f":"SUM(K8,O8,S8)","v":23.130000000000003}]
[4,"TJ Sokol M.Ostrava 1",4,"Řehulková","Alice",2011,"TJ Sokol M.Ostrava 1",0,8.6999999999999993,null,{"$f":"IF(SUM(H9:I9)>0,(H9+I9-J9),0)","v":8.6999999999999993},0,7.7,null,{"$f":"IF(SUM(L9:M9)>0,(L9+M9-N9),0)","v":7.7},0,6.03,null,{"$f":"IF(SUM(P9:Q9)>0,(P9+Q9-R9),0)","v":6.03},{"$f":"SUM(K9,O9,S9)","v":22.43}]
["5 - 6","GK Šumperk",5,"Hermannová","Markéta",2011,"GK Šumperk",0,8.15,null,{"$f":"IF(SUM(H10:I10)>0,(H10+I10-J10),0)","v":8.15},0,7.5,null,{"$f":"IF(SUM(L10:M10)>0,(L10+M10-N10),0)","v":7.5},0,6.47,null,{"$f":"IF(SUM(P10:Q10)>0,(P10+Q10-R10),0)","v":6.47},{"$f":"SUM(K10,O10,S10)","v":22.12}]
["5 - 6","KSG SK Přerov",6,"Otáhalová","Barbora",2011,"KSG SK Přerov",0,8.5,null,{"$f":"IF(SUM(H11:I11)>0,(H11+I11-J11),0)","v":8.5},0,7.15,null,{"$f":"IF(SUM(L11:M11)>0,(L11+M11-N11),0)","v":7.15},0,6.47,null,{"$f":"IF(SUM(P11:Q11)>0,(P11+Q11-R11),0)","v":6.47},{"$f":"SUM(K11,O11,S11)","v":22.12}]
[7,"TJ Sokol M.Ostrava 1",7,"Švábková","Sofie",2011,"TJ Sokol M.Ostrava 1",0,8.4,null,{"$f":"IF(SUM(H12:I12)>0,(H12+I12-J12),0)","v":8.4},0,5.45,null,{"$f":"IF(SUM(L12:M12)>0,(L12+M12-N12),0)","v":5.45},0,6.83,null,{"$f":"IF(SUM(P12:Q12)>0,(P12+Q12-R12),0)","v":6.83},{"$f":"SUM(K12,O12,S12)","v":20.68}]
["9 - 10",0,9,null,null,null,null,null,null,null,{"$f":"IF(SUM(H13:I13)>0,(H13+I13-J13),0)","v":0},null,null,null,{"$f":"IF(SUM(L13:M13)>0,(L13+M13-N13),0)","v":0},null,null,null,{"$f":"IF(SUM(P13:Q13)>0,(P13+Q13-R13),0)","v":0},{"$f":"SUM(K13,O13,S13)","v":0}]
["10 - 11",0,10,null,null,null,null,null,null,null,{"$f":"IF(SUM(H14:I14)>0,(H14+I14-J14),0)","v":0},null,null,null,{"$f":"IF(SUM(L14:M14)>0,(L14+M14-N14),0)","v":0},null,null,null,{"$f":"IF(SUM(P14:Q14)>0,(P14+Q14-R14),0)","v":0},{"$f":"SUM(K14,O14,S14)","v":0}]
["11 - 12",0,11,null,null,null,null,null,null,null,{"$f":"IF(SUM(H15:I15)>0,(H15+I15-J15),0)","v":0},null,null,null,{"$f":"IF(SUM(L15:M15)>0,(L15+M15-N15),0)","v":0},null,null,null,{"$f":"IF(SUM(P15:Q15)>0,(P15+Q15-R15),0)","v":0},{"$f":"SUM(K15,O15,S15)","v":0}]
["12 - 13",0,12,null,null,null,null,null,null,null,{"$f":"IF(SUM(H16:I16)>0,(H16+I16-J16),0)","v":0},null,null,null,{"$f":"IF(SUM(L16:M16)>0,(L16+M16-N16),0)","v":0},null,null,null,{"$f":"IF(SUM(P16:Q16)>0,(P16+Q16-R16),0)","v":0},{"$f":"SUM(K16,O16,S16)","v":0}]
["13 - 14",0,13,null,null,null,null,null,null,null,{"$f":"IF(SUM(H17:I17)>0,(H17+I17-J17),0)","v":0},null,null,null,{"$f":"IF(SUM(L17:M17)>0,(L17+M17-N17),0)","v":0},null,null,null,{"$f":"IF(SUM(P17:Q17)>0,(P17+Q17-R17),0)","v":0},{"$f":"SUM(K17,O17,S17)","v":0}]
["14 - 15",0,14,null,null,null,null,null,null,null,{"$f":"IF(SUM(H18:I18)>0,(H18+I18-J18),0)","v":0},null,null,null,{"$f":"IF(SUM(L18:M18)>0,(L18+M18-N18),0)","v":0},null,null,null,{"$f":"IF(SUM(P18:Q18)>0,(P18+Q18-R18),0)","v":0},{"$f":"SUM(K18,O18,S18)","v":0}]
["15 - 16",0,15,null,null,null,null,null,null,null,{"$f":"IF(SUM(H19:I19)>0,(H19+I19-J19),0)","v":0},null,null,null,{"$f":"IF(SUM(L19:M19)>0,(L19+M19-N19),0)","v":0},null,null,null,{"$f":"IF(SUM(P19:Q19)>0,(P19+Q19-R19),0)","v":0},{"$f":"SUM(K19,O19,S19)","v":0}]
["16 - 17",0,16,null,null,null,null,null,null,null,{"$f":"IF(SUM(H20:I20)>0,(H20+I20-J20),0)","v":0},null,null,null,{"$f":"IF(SUM(L20:M20)>0,(L20+M20-N20),0)","v":0},null,null,null,{"$f":"IF(SUM(P20:Q20)>0,(P20+Q20-R20),0)","v":0},{"$f":"SUM(K20,O20,S20)","v":0}]
["17 - 18",0,17,null,null,null,null,null,null,null,{"$f":"IF(SUM(H21:I21)>0,(H21+I21-J21),0)","v":0},null,null,null,{"$f":"IF(SUM(L21:M21)>0,(L21+M21-N21),0)","v":0},null,null,null,{"$f":"IF(SUM(P21:Q21)>0,(P21+Q21-R21),0)","v":0},{"$f":"SUM(K21,O21,S21)","v":0}]
["18 - 19",0,18,null,null,null,null,null,null,null,{"$f":"IF(SUM(H22:I22)>0,(H22+I22-J22),0)","v":0},null,null,null,{"$f":"IF(SUM(L22:M22)>0,(L22+M22-N22),0)","v":0},null,null,null,{"$f":"IF(SUM(P22:Q22)>0,(P22+Q22-R22),0)","v":0},{"$f":"SUM(K22,O22,S22)","v":0}]
["19 - 20",0,19,null,null,null,null,null,null,null,{"$f":"IF(SUM(H23:I23)>0,(H23+I23-J23),0)","v":0},null,null,null,{"$f":"IF(SUM(L23:M23)>0,(L23+M23-N23),0)","v":0},null,null,null,{"$f":"IF(SUM(P23:Q23)>0,(P23+Q23-R23),0)","v":0},{"$f":"SUM(K23,O23,S23)","v":0}]
["20 - 21",0,20,null,null,null,null,null,null,null,{"$f":"IF(SUM(H24:I24)>0,(H24+I24-J24),0)","v":0},null,null,null,{"$f":"IF(SUM(L24:M24)>0,(L24+M24-N24),0)","v":0},null,null,null,{"$f":"IF(SUM(P24:Q24)>0,(P24+Q24-R24),0)","v":0},{"$f":"SUM(K24,O24,S24)","v":0}]
["21 - 22",0,21,null,null,null,null,null,null,null,{"$f":"IF(SUM(H25:I25)>0,(H25+I25-J25),0)","v":0},null,null,null,{"$f":"IF(SUM(L25:M25)>0,(L25+M25-N25),0)","v":0},null,null,null,{"$f":"IF(SUM(P25:Q25)>0,(P25+Q25-R25),0)","v":0},{"$f":"SUM(K25,O25,S25)","v":0}]
["22 - ",0,22,null,null,null,null,null,null,null,{"$f":"IF(SUM(H26:I26)>0,(H26+I26-J26),0)","v":0},null,null,null,{"$f":"IF(SUM(L26:M26)>0,(L26+M26-N26),0)","v":0},null,null,null,{"$f":"IF(SUM(P26:Q26)>0,(P26+Q26-R26),0)","v":0},{"$f":"SUM(K26,O26,S26)","v":0}]
[" - ",0]
[]
[]
[null,null,null,"Ředitel závodu: Mgr. Zdena Langerová",null,null,null,"Hlavní rozhodčí: Mgr. Kateřina Valová",null,null,null,null,null,null,null,"Rozhodčí:"]

{"sheet":"Kategorie I. - 2010","index":1,"n_rows":30,"n_cols":20,"rows_kept":30,"cut":false,"hidden":false,"merged":[]}
[null,null,null,null,null,null,"Memoriál Petry Urbáškové - 23. ročník"]
[null,null,null,null,null,null,"2018-04-24"]
[null,null,null,null,null,null,"Kategorie I."]
[]
["čítač","Oddíl","Poř."," ",null,"Ročník","Oddíl","D","E","Pen.","S","D","E","Pen.","S","D","E","Pen.","S","Celkem"]
[{"$f":"IF(T6=T7,C6&\" - \"&C7,IF(T6=T5,C5&\" - \"&C6,C6))","v":1},{"$f":"G6","v":"TJ Sokol M.Ostrava 1"},1,"Pačutová","Mahulena",2010,"TJ Sokol M.Ostrava 1",0,8.9499999999999993,null,{"$f":"IF(SUM(H6:I6)>0,(H6+I6-J6),0)","v":8.9499999999999993},0,9,null,{"$f":"IF(SUM(L6:M6)>0,(L6+M6-N6),0)","v":9},0,8.1,null,{"$f":"IF(SUM(P6:Q6)>0,(P6+Q6-R6),0)","v":8.1},{"$f":"SUM(K6,O6,S6)","v":26.049999999999997}]
[2,{"$f":"G7","v":"SK UP Olomouc"},2,"Korčiánová","Karolína",2010,"SK UP Olomouc",0,8.5,null,{"$f":"IF(SUM(H7:I7)>0,(H7+I7-J7),0)","v":8.5},0,9.15,null,{"$f":"IF(SUM(L7:M7)>0,(L7+M7-N7),0)","v":9.15},0,8.3000000000000007,null,{"$f":"IF(SUM(P7:Q7)>0,(P7+Q7-R7),0)","v":8.3000000000000007},{"$f":"SUM(K7,O7,S7)","v":25.95}]
[3,"TJ Sokol M.Ostrava 1",3,"Vojtková","Nela",2010,"TJ Sokol M.Ostrava 1",0,8.9499999999999993,null,{"$f":"IF(SUM(H8:I8)>0,(H8+I8-J8),0)","v":8.9499999999999993},0,8.6999999999999993,null,{"$f":"IF(SUM(L8:M8)>0,(L8+M8-N8),0)","v":8.6999999999999993},0,7.2,null,{"$f":"IF(SUM(P8:Q8)>0,(P8+Q8-R8),0)","v":7.2},{"$f":"SUM(K8,O8,S8)","v":24.849999999999998}]
[4,"TJ Sokol M.Ostrava 1",4,"Steckerová","Sabina",2010,"TJ Sokol M.Ostrava 1",0,8.75,null,{"$f":"IF(SUM(H9:I9)>0,(H9+I9-J9),0)","v":8.75},0,8.4499999999999993,null,{"$f":"IF(SUM(L9:M9)>0,(L9+M9-N9),0)","v":8.4499999999999993},0,6.6,null,{"$f":"IF(SUM(P9:Q9)>0,(P9+Q9-R9),0)","v":6.6},{"$f":"SUM(K9,O9,S9)","v":23.799999999999997}]
[5,"Gymnastika Zlín",5,"Löfflerová","Kristýna",2010,"Gymnastika Zlín",0,9.0500000000000007,null,{"$f":"IF(SUM(H10:I10)>0,(H10+I10-J10),0)","v":9.0500000000000007},0,7.25,null,{"$f":"IF(SUM(L10:M10)>0,(L10+M10-N10),0)","v":7.25},0,7.27,null,{"$f":"IF(SUM(P10:Q10)>0,(P10+Q10-R10),0)","v":7.27},{"$f":"SUM(K10,O10,S10)","v":23.57}]
[6,"KSG SK Přerov",6,"Manová","Sabina",2010,"KSG SK Přerov",0,8.75,null,{"$f":"IF(SUM(H11:I11)>0,(H11+I11-J11),0)","v":8.75},0,7.75,null,{"$f":"IF(SUM(L11:M11)>0,(L11+M11-N11),0)","v":7.75},0,6.87,null,{"$f":"IF(SUM(P11:Q11)>0,(P11+Q11-R11),0)","v":6.87},{"$f":"SUM(K11,O11,S11)","v":23.37}]
[7,"SK UP Olomouc",7,"Kramplová","Eliška",2010,"SK UP Olomouc",0,8.1999999999999993,null,{"$f":"IF(SUM(H12:I12)>0,(H12+I12-J12),0)","v":8.1999999999999993},0,7.65,null,{"$f":"IF(SUM(L12:M12)>0,(L12+M12-N12),0)","v":7.65},0,7.4,null,{"$f":"IF(SUM(P12:Q12)>0,(P12+Q12-R12),0)","v":7.4},{"$f":"SUM(K12,O12,S12)","v":23.25}]
[8,"TJ Sokol Kopřivnice",8,"Čubová","Nela",2010,"TJ Sokol Kopřivnice",0,8.65,null,{"$f":"IF(SUM(H13:I13)>0,(H13+I13-J13),0)","v":8.65},0,6.85,null,{"$f":"IF(SUM(L13:M13)>0,(L13+M13-N13),0)","v":6.85},0,7.07,null,{"$f":"IF(SUM(P13:Q13)>0,(P13+Q13-R13),0)","v":7.07},{"$f":"SUM(K13,O13,S13)","v":22.57}]
[9,"KSG SK Přerov",9,"Novotná ","Julie",2010,"KSG SK Přerov",0,8.75,null,{"$f":"IF(SUM(H14:I14)>0,(H14+I14-J14),0)","v":8.75},0,7.85,null,{"$f":"IF(SUM(L14:M14)>0,(L14+M14-N14),0)","v":7.85},0,5.9,null,{"$f":"IF(SUM(P14:Q14)>0,(P14+Q14-R14),0)","v":5.9},{"$f":"SUM(K14,O14,S14)","v":22.5}]
[10,"ŠK ŠG GY-TY Poprad",10,"Šavelová","Diana",2010,"ŠK ŠG GY-TY Poprad",0,8.5,null,{"$f":"IF(SUM(H15:I15)>0,(H15+I15-J15),0)","v":8.5},0,6.85,null,{"$f":"IF(SUM(L15:M15)>0,(L15+M15-N15),0)","v":6.85},0,6.83,null,{"$f":"IF(SUM(P15:Q15)>0,(P15+Q15-R15),0)","v":6.83},{"$f":"SUM(K15,O15,S15)","v":22.18}]
[11,"TJ Sokol M.Ostrava 1",11,"Klučková","Hana",2010,"TJ Sokol M.Ostrava 1",0,8.1999999999999993,null,{"$f":"IF(SUM(H16:I16)>0,(H16+I16-J16),0)","v":8.1999999999999993},0,6.25,null,{"$f":"IF(SUM(L16:M16)>0,(L16+M16-N16),0)","v":6.25},0,7.37,null,{"$f":"IF(SUM(P16:Q16)>0,(P16+Q16-R16),0)","v":7.37},{"$f":"SUM(K16,O16,S16)","v":21.82}]
[12,"GK Šumperk",12,"Langerová","Tereza",2010,"GK Šumperk",0,6.75,null,{"$f":"IF(SUM(H17:I17)>0,(H17+I17-J17),0)","v":6.75},0,2.35,null,{"$f":"IF(SUM(L17:M17)>0,(L17+M17-N17),0)","v":2.35},0,5.27,2,{"$f":"IF(SUM(P17:Q17)>0,(P17+Q17-R17),0)","v":3.2699999999999996},{"$f":"SUM(K17,O17,S17)","v":12.37}]
["13 - 14",0,13,null,null,null,null,null,null,null,{"$f":"IF(SUM(H18:I18)>0,(H18+I18-J18),0)","v":0},null,null,null,{"$f":"IF(SUM(L18:M18)>0,(L18+M18-N18),0)","v":0},null,null,null,{"$f":"IF(SUM(P18:Q18)>0,(P18+Q18-R18),0)","v":0},{"$f":"SUM(K18,O18,S18)","v":0}]
["14 - 15",0,14,null,null,null,null,null,null,null,{"$f":"IF(SUM(H19:I19)>0,(H19+I19-J19),0)","v":0},null,null,null,{"$f":"IF(SUM(L19:M19)>0,(L19+M19-N19),0)","v":0},null,null,null,{"$f":"IF(SUM(P19:Q19)>0,(P19+Q19-R19),0)","v":0},{"$f":"SUM(K19,O19,S19)","v":0}]
["15 - 16",0,15,null,null,null,null,null,null,null,{"$f":"IF(SUM(H20:I20)>0,(H20+I20-J20),0)","v":0},null,null,null,{"$f":"IF(SUM(L20:M20)>0,(L20+M20-N20),0)","v":0},null,null,null,{"$f":"IF(SUM(P20:Q20)>0,(P20+Q20-R20),0)","v":0},{"$f":"SUM(K20,O20,S20)","v":0}]
["16 - 17",0,16,null,null,null,null,null,null,null,{"$f":"IF(SUM(H21:I21)>0,(H21+I21-J21),0)","v":0},null,null,null,{"$f":"IF(SUM(L21:M21)>0,(L21+M21-N21),0)","v":0},null,null,null,{"$f":"IF(SUM(P21:Q21)>0,(P21+Q21-R21),0)","v":0},{"$f":"SUM(K21,O21,S21)","v":0}]
["17 - 18",0,17,null,null,null,null,null,null,null,{"$f":"IF(SUM(H22:I22)>0,(H22+I22-J22),0)","v":0},null,null,null,{"$f":"IF(SUM(L22:M22)>0,(L22+M22-N22),0)","v":0},null,null,null,{"$f":"IF(SUM(P22:Q22)>0,(P22+Q22-R22),0)","v":0},{"$f":"SUM(K22,O22,S22)","v":0}]
["18 - 19",0,18,null,null,null,null,null,null,null,{"$f":"IF(SUM(H23:I23)>0,(H23+I23-J23),0)","v":0},null,null,null,{"$f":"IF(SUM(L23:M23)>0,(L23+M23-N23),0)","v":0},null,null,null,{"$f":"IF(SUM(P23:Q23)>0,(P23+Q23-R23),0)","v":0},{"$f":"SUM(K23,O23,S23)","v":0}]
["19 - 20",0,19,null,null,null,null,null,null,null,{"$f":"IF(SUM(H24:I24)>0,(H24+I24-J24),0)","v":0},null,null,null,{"$f":"IF(SUM(L24:M24)>0,(L24+M24-N24),0)","v":0},null,null,null,{"$f":"IF(SUM(P24:Q24)>0,(P24+Q24-R24),0)","v":0},{"$f":"SUM(K24,O24,S24)","v":0}]
["20 - 21",0,20,null,null,null,null,null,null,null,{"$f":"IF(SUM(H25:I25)>0,(H25+I25-J25),0)","v":0},null,null,null,{"$f":"IF(SUM(L25:M25)>0,(L25+M25-N25),0)","v":0},null,null,null,{"$f":"IF(SUM(P25:Q25)>0,(P25+Q25-R25),0)","v":0},{"$f":"SUM(K25,O25,S25)","v":0}]
["21 - 22",0,21,null,null,null,null,null,null,null,{"$f":"IF(SUM(H26:I26)>0,(H26+I26-J26),0)","v":0},null,null,null,{"$f":"IF(SUM(L26:M26)>0,(L26+M26-N26),0)","v":0},null,null,null,{"$f":"IF(SUM(P26:Q26)>0,(P26+Q26-R26),0)","v":0},{"$f":"SUM(K26,O26,S26)","v":0}]
["22 - ",0,22,null,null,null,null,null,null,null,{"$f":"IF(SUM(H27:I27)>0,(H27+I27-J27),0)","v":0},null,null,null,{"$f":"IF(SUM(L27:M27)>0,(L27+M27-N27),0)","v":0},null,null,null,{"$f":"IF(SUM(P27:Q27)>0,(P27+Q27-R27),0)","v":0},{"$f":"SUM(K27,O27,S27)","v":0}]
[]
[]
[null,null,null,"Ředitel závodu: Mgr. Zdena Langerová",null,null,null,"Hlavní rozhodčí: Mgr. Kateřina Valová",null,null,null,null,null,null,null,"Rozhodčí:"]

{"sheet":"Kategorie II. - 2009","index":2,"n_rows":40,"n_cols":20,"rows_kept":40,"cut":false,"hidden":false,"merged":[]}
[null,null,null,null,null,null,"Memoriál Petry Urbáškové - 22. ročník"]
[null,null,null,null,null,null,"2018-04-24"]
[null,null,null,null,null,null,"Kategorie II."]
[]
["čítač","Oddíl","Poř.","Příjmení, Jméno",null,"Ročník","Oddíl","D","E","Pen.","S","D","E","Pen.","S","D","E","Pen.","S","Celkem"]
[{"$f":"IF(T6=T7,C6&\" - \"&C7,IF(T6=T5,C5&\" - \"&C6,C6))","v":1},{"$f":"G6","v":"GK Šumperk"},1,"Machytková","Jitka",2009,"GK Šumperk",2.2999999999999998,8.5,null,{"$f":"IF(SUM(H6:I6)>0,(H6+I6-J6),0)","v":10.8},3,7.86,null,{"$f":"IF(SUM(L6:M6)>0,(L6+M6-N6),0)","v":10.86},2.2000000000000002,7.9,null,{"$f":"IF(SUM(P6:Q6)>0,(P6+Q6-R6),0)","v":10.100000000000001},{"$f":"SUM(K6,O6,S6)","v":31.76}]
[2,"GK Šumperk",2,"Machytková","Lenka",2009,"GK Šumperk",2.2999999999999998,6.85,null,{"$f":"IF(SUM(H7:I7)>0,(H7+I7-J7),0)","v":9.1499999999999986},3,8.4600000000000009,null,{"$f":"IF(SUM(L7:M7)>0,(L7+M7-N7),0)","v":11.46},2.2999999999999998,7.8,null,{"$f":"IF(SUM(P7:Q7)>0,(P7+Q7-R7),0)","v":10.1},{"$f":"SUM(K7,O7,S7)","v":30.71}]
[3,"GK Šumperk",3,"Janků","Michaela",2009,"GK Šumperk",2.2999999999999998,7,null,{"$f":"IF(SUM(H8:I8)>0,(H8+I8-J8),0)","v":9.3000000000000007},3,7.13,null,{"$f":"IF(SUM(L8:M8)>0,(L8+M8-N8),0)","v":10.129999999999999},2.2000000000000002,8.0500000000000007,null,{"$f":"IF(SUM(P8:Q8)>0,(P8+Q8-R8),0)","v":10.25},{"$f":"SUM(K8,O8,S8)","v":29.68}]
[4,"TJ Sokol M.Ostrava 1",4,"Vrátná","Johana",2009,"TJ Sokol M.Ostrava 1",2.2999999999999998,7.25,null,{"$f":"IF(SUM(H9:I9)>0,(H9+I9-J9),0)","v":9.5500000000000007},2.8,6,null,{"$f":"IF(SUM(L9:M9)>0,(L9+M9-N9),0)","v":8.8000000000000007},2.2999999999999998,7.65,null,{"$f":"IF(SUM(P9:Q9)>0,(P9+Q9-R9),0)","v":9.9499999999999993},{"$f":"SUM(K9,O9,S9)","v":28.3}]
[5,"TJ Sokol M.Ostrava 1",5,"Švrčková ","Ella",2009,"TJ Sokol M.Ostrava 1",1.7,6.15,null,{"$f":"IF(SUM(H10:I10)>0,(H10+I10-J10),0)","v":7.8500000000000005},2,5.36,null,{"$f":"IF(SUM(L10:M10)>0,(L10+M10-N10),0)","v":7.36},1.4,7.2,0.5,{"$f":"IF(SUM(P10:Q10)>0,(P10+Q10-R10),0)","v":8.1},{"$f":"SUM(K10,O10,S10)","v":23.310000000000002}]
[6,"TJ Sokol M.Ostrava 1",6,"Ševčíková","Natálie",2009,"TJ Sokol M.Ostrava 1",1.7,6.9,null,{"$f":"IF(SUM(H11:I11)>0,(H11+I11-J11),0)","v":8.6},2,5.2,null,{"$f":"IF(SUM(L11:M11)>0,(L11+M11-N11),0)","v":7.2},1.5,6.45,0.5,{"$f":"IF(SUM(P11:Q11)>0,(P11+Q11-R11),0)","v":7.45},{"$f":"SUM(K11,O11,S11)","v":23.25}]
[7,"ŠK ŠG GY-TA Poprad",7,"Bírová","Silvia",2009,"ŠK ŠG GY-TA Poprad",1.6,6.85,4,{"$f":"IF(SUM(H12:I12)>0,(H12+I12-J12),0)","v":4.4499999999999993},2.7,7.03,null,{"$f":"IF(SUM(L12:M12)>0,(L12+M12-N12),0)","v":9.73},1.5,7.4,0.5,{"$f":"IF(SUM(P12:Q12)>0,(P12+Q12-R12),0)","v":8.4},{"$f":"SUM(K12,O12,S12)","v":22.58}]
[8,"ŠK ŠG GY-TA Poprad",8,"Čongvová","Jela",2009,"ŠK ŠG GY-TA Poprad",1.7,4.7,null,{"$f":"IF(SUM(H13:I13)>0,(H13+I13-J13),0)","v":6.4},2.6,5.6,null,{"$f":"IF(SUM(L13:M13)>0,(L13+M13-N13),0)","v":8.1999999999999993},1.5,6.35,0.5,{"$f":"IF(SUM(P13:Q13)>0,(P13+Q13-R13),0)","v":7.35},{"$f":"SUM(K13,O13,S13)","v":21.95}]
[9,"KSG SK Přerov",9,"Medvědová ","Vendula",2009,"KSG SK Přerov",1.5,7.6,4,{"$f":"IF(SUM(H14:I14)>0,(H14+I14-J14),0)","v":5.0999999999999996},2.4,6.6,null,{"$f":"IF(SUM(L14:M14)>0,(L14+M14-N14),0)","v":9},1.3,6.9,0.5,{"$f":"IF(SUM(P14:Q14)>0,(P14+Q14-R14),0)","v":7.7000000000000011},{"$f":"SUM(K14,O14,S14)","v":21.8}]
[10,"TJ Sokol Bučovice",10,"Nebojsová ","Zuzana",2009,"TJ Sokol Bučovice",1.5,7.3,4,{"$f":"IF(SUM(H15:I15)>0,(H15+I15-J15),0)","v":4.8000000000000007},1.5,6.93,null,{"$f":"IF(SUM(L15:M15)>0,(L15+M15-N15),0)","v":8.43},1.4,7.15,0.5,{"$f":"IF(SUM(P15:Q15)>0,(P15+Q15-R15),0)","v":8.0500000000000007},{"$f":"SUM(K15,O15,S15)","v":21.28}]
[11,"GK Šumperk",11,"Navrátilová","Valerie",2009,"GK Šumperk",1,6,4,{"$f":"IF(SUM(H16:I16)>0,(H16+I16-J16),0)","v":3},2.5,5.8,null,{"$f":"IF(SUM(L16:M16)>0,(L16+M16-N16),0)","v":8.3000000000000007},1.2,7.15,0.5,{"$f":"IF(SUM(P16:Q16)>0,(P16+Q16-R16),0)","v":7.85},{"$f":"SUM(K16,O16,S16)","v":19.149999999999999}]
[12,"ŠK ŠG GY-TA Poprad",12,"Horská ","Katarína",2009,"ŠK ŠG GY-TA Poprad",1.6,4.5,4,{"$f":"IF(SUM(H17:I17)>0,(H17+I17-J17),0)","v":2.0999999999999996},1.6,7.36,null,{"$f":"IF(SUM(L17:M17)>0,(L17+M17-N17),0)","v":8.9600000000000009},1.4,7.05,0.5,{"$f":"IF(SUM(P17:Q17)>0,(P17+Q17-R17),0)","v":7.9499999999999993},{"$f":"SUM(K17,O17,S17)","v":19.009999999999998}]
[13,"KŠG-Liptovský Mikuláš",13,"Stejskalová","Klára",2009,"KŠG-Liptovský Mikuláš",1,6.9,4,{"$f":"IF(SUM(H18:I18)>0,(H18+I18-J18),0)","v":3.9000000000000004},0.9,5.34,null,{"$f":"IF(SUM(L18:M18)>0,(L18+M18-N18),0)","v":6.24},0.9,6.25,0.5,{"$f":"IF(SUM(P18:Q18)>0,(P18+Q18-R18),0)","v":6.65},{"$f":"SUM(K18,O18,S18)","v":16.79}]
["16 - 17",0,16,null,null,null,null,null,null,null,{"$f":"IF(SUM(H19:I19)>0,(H19+I19-J19),0)","v":0},null,null,null,{"$f":"IF(SUM(L19:M19)>0,(L19+M19-N19),0)","v":0},null,null,null,{"$f":"IF(SUM(P19:Q19)>0,(P19+Q19-R19),0)","v":0},{"$f":"SUM(K19,O19,S19)","v":0}]
["17 - 18",0,17,null,null,null,null,null,null,null,{"$f":"IF(SUM(H20:I20)>0,(H20+I20-J20),0)","v":0},null,null,null,{"$f":"IF(SUM(L20:M20)>0,(L20+M20-N20),0)","v":0},null,null,null,{"$f":"IF(SUM(P20:Q20)>0,(P20+Q20-R20),0)","v":0},{"$f":"SUM(K20,O20,S20)","v":0}]
["18 - 19",0,18,null,null,null,null,null,null,null,{"$f":"IF(SUM(H21:I21)>0,(H21+I21-J21),0)","v":0},null,null,null,{"$f":"IF(SUM(L21:M21)>0,(L21+M21-N21),0)","v":0},null,null,null,{"$f":"IF(SUM(P21:Q21)>0,(P21+Q21-R21),0)","v":0},{"$f":"SUM(K21,O21,S21)","v":0}]
["19 - 20",0,19,null,null,null,null,null,null,null,{"$f":"IF(SUM(H22:I22)>0,(H22+I22-J22),0)","v":0},null,null,null,{"$f":"IF(SUM(L22:M22)>0,(L22+M22-N22),0)","v":0},null,null,null,{"$f":"IF(SUM(P22:Q22)>0,(P22+Q22-R22),0)","v":0},{"$f":"SUM(K22,O22,S22)","v":0}]
["20 - 21",0,20,null,null,null,null,null,null,null,{"$f":"IF(SUM(H23:I23)>0,(H23+I23-J23),0)","v":0},null,null,null,{"$f":"IF(SUM(L23:M23)>0,(L23+M23-N23),0)","v":0},null,null,null,{"$f":"IF(SUM(P23:Q23)>0,(P23+Q23-R23),0)","v":0},{"$f":"SUM(K23,O23,S23)","v":0}]
["21 - 22",0,21,null,null,null,null,null,null,null,{"$f":"IF(SUM(H24:I24)>0,(H24+I24-J24),0)","v":0},null,null,null,{"$f":"IF(SUM(L24:M24)>0,(L24+M24-N24),0)","v":0},null,null,null,{"$f":"IF(SUM(P24:Q24)>0,(P24+Q24-R24),0)","v":0},{"$f":"SUM(K24,O24,S24)","v":0}]
["22 - 23",0,22,null,null,null,null,null,null,null,{"$f":"IF(SUM(H25:I25)>0,(H25+I25-J25),0)","v":0},null,null,null,{"$f":"IF(SUM(L25:M25)>0,(L25+M25-N25),0)","v":0},null,null,null,{"$f":"IF(SUM(P25:Q25)>0,(P25+Q25-R25),0)","v":0},{"$f":"SUM(K25,O25,S25)","v":0}]
["23 - 24",0,23,null,null,null,null,null,null,null,{"$f":"IF(SUM(H26:I26)>0,(H26+I26-J26),0)","v":0},null,null,null,{"$f":"IF(SUM(L26:M26)>0,(L26+M26-N26),0)","v":0},null,null,null,{"$f":"IF(SUM(P26:Q26)>0,(P26+Q26-R26),0)","v":0},{"$f":"SUM(K26,O26,S26)","v":0}]
["24 - ",0,24,null,null,null,null,null,null,null,{"$f":"IF(SUM(H27:I27)>0,(H27+I27-J27),0)","v":0},null,null,null,{"$f":"IF(SUM(L27:M27)>0,(L27+M27-N27),0)","v":0},null,null,null,{"$f":"IF(SUM(P27:Q27)>0,(P27+Q27-R27),0)","v":0},{"$f":"SUM(K27,O27,S27)","v":0}]
[null,null,null,null,null,null,null,null,null,null,{"$f":"IF(SUM(H28:I28)>0,(H28+I28-J28),0)","v":0},null,null,null,{"$f":"IF(SUM(L28:M28)>0,(L28+M28-N28),0)","v":0},null,null,null,{"$f":"IF(SUM(P28:Q28)>0,(P28+Q28-R28),0)","v":0},{"$f":"SUM(K28,O28,S28)","v":0}]
[null,null,null,null,null,null,null,null,null,null,{"$f":"IF(SUM(H29:I29)>0,(H29+I29-J29),0)","v":0},null,null,null,{"$f":"IF(SUM(L29:M29)>0,(L29+M29-N29),0)","v":0},null,null,null,{"$f":"IF(SUM(P29:Q29)>0,(P29+Q29-R29),0)","v":0},{"$f":"SUM(K29,O29,S29)","v":0}]
[{"$f":"IF(T30=T31,C30&\" - \"&C31,IF(T30=T29,C29&\" - \"&C30,C30))","v":"25 - 26"},{"$f":"G30","v":0},25,null,null,null,null,null,null,null,{"$f":"IF(SUM(H30:I30)>0,(H30+I30-J30),0)","v":0},null,null,null,{"$f":"IF(SUM(L30:M30)>0,(L30+M30-N30),0)","v":0},null,null,null,{"$f":"IF(SUM(P30:Q30)>0,(P30+Q30-R30),0)","v":0},{"$f":"SUM(K30,O30,S30)","v":0}]
["26 - 27",0,26,null,null,null,null,null,null,null,{"$f":"IF(SUM(H31:I31)>0,(H31+I31-J31),0)","v":0},null,null,null,{"$f":"IF(SUM(L31:M31)>0,(L31+M31-N31),0)","v":0},null,null,null,{"$f":"IF(SUM(P31:Q31)>0,(P31+Q31-R31),0)","v":0},{"$f":"SUM(K31,O31,S31)","v":0}]
["27 - 28",0,27,null,null,null,null,null,null,null,{"$f":"IF(SUM(H32:I32)>0,(H32+I32-J32),0)","v":0},null,null,null,{"$f":"IF(SUM(L32:M32)>0,(L32+M32-N32),0)","v":0},null,null,null,{"$f":"IF(SUM(P32:Q32)>0,(P32+Q32-R32),0)","v":0},{"$f":"SUM(K32,O32,S32)","v":0}]
["28 - 29",0,28,null,null,null,null,null,null,null,{"$f":"IF(SUM(H33:I33)>0,(H33+I33-J33),0)","v":0},null,null,null,{"$f":"IF(SUM(L33:M33)>0,(L33+M33-N33),0)","v":0},null,null,null,{"$f":"IF(SUM(P33:Q33)>0,(P33+Q33-R33),0)","v":0},{"$f":"SUM(K33,O33,S33)","v":0}]
["29 - 30",0,29,null,null,null,null,null,null,null,{"$f":"IF(SUM(H34:I34)>0,(H34+I34-J34),0)","v":0},null,null,null,{"$f":"IF(SUM(L34:M34)>0,(L34+M34-N34),0)","v":0},null,null,null,{"$f":"IF(SUM(P34:Q34)>0,(P34+Q34-R34),0)","v":0},{"$f":"SUM(K34,O34,S34)","v":0}]
["30 - 31",0,30,null,null,null,null,null,null,null,{"$f":"IF(SUM(H35:I35)>0,(H35+I35-J35),0)","v":0},null,null,null,{"$f":"IF(SUM(L35:M35)>0,(L35+M35-N35),0)","v":0},null,null,null,{"$f":"IF(SUM(P35:Q35)>0,(P35+Q35-R35),0)","v":0},{"$f":"SUM(K35,O35,S35)","v":0}]
["31 - 32",0,31,null,null,null,null,null,null,null,{"$f":"IF(SUM(H36:I36)>0,(H36+I36-J36),0)","v":0},null,null,null,{"$f":"IF(SUM(L36:M36)>0,(L36+M36-N36),0)","v":0},null,null,null,{"$f":"IF(SUM(P36:Q36)>0,(P36+Q36-R36),0)","v":0},{"$f":"SUM(K36,O36,S36)","v":0}]
["32 - 33",0,32]
["33 - ",0,33]
[]
[null,null,null,"Ředitel závodu: Mgr. Zdena Langerová",null,null,null,"Hlavní rozhodčí: Mgr. Kateřina Valová",null,null,null,null,null,null,null,"Rozhodčí:"]

{"sheet":"Kategorie II. - 2008","index":3,"n_rows":40,"n_cols":20,"rows_kept":40,"cut":false,"hidden":false,"merged":[]}
[null,null,null,null,null,null,"Memoriál Petry Urbáškové - 22. ročník"]
[null,null,null,null,null,null,"2018-04-24"]
[null,null,null,null,null,null,"Kategorie II."]
[]
["čítač","Oddíl","Poř.","Příjmení, Jméno",null,"Ročník","Oddíl","D","E","Pen.","S","D","E","Pen.","S","D","E","Pen.","S","Celkem"]
[{"$f":"IF(T6=T7,C6&\" - \"&C7,IF(T6=T5,C5&\" - \"&C6,C6))","v":1},{"$f":"G6","v":"GK ŠK UMB B.Bystrica"},1,"Boľošová","Liliana",2008,"GK ŠK UMB B.Bystrica",2.5,7.9,null,{"$f":"IF(SUM(H6:I6)>0,(H6+I6-J6),0)","v":10.4},3.5,6.83,null,{"$f":"IF(SUM(L6:M6)>0,(L6+M6-N6),0)","v":10.33},2.2999999999999998,7.85,null,{"$f":"IF(SUM(P6:Q6)>0,(P6+Q6-R6),0)","v":10.149999999999999},{"$f":"SUM(K6,O6,S6)","v":30.88}]
[2,"KSG SK Přerov",2,"Borková","Christina ",2008,"KSG SK Přerov",2.5,7.35,null,{"$f":"IF(SUM(H7:I7)>0,(H7+I7-J7),0)","v":9.85},3.1,6.9,null,{"$f":"IF(SUM(L7:M7)>0,(L7+M7-N7),0)","v":10},2.2000000000000002,7.2,null,{"$f":"IF(SUM(P7:Q7)>0,(P7+Q7-R7),0)","v":9.4},{"$f":"SUM(K7,O7,S7)","v":29.25}]
[3,"GK ŠK UMB B.Bystrica",3,"Rosputinská","Adela",2008,"GK ŠK UMB B.Bystrica",2.5,7.2,null,{"$f":"IF(SUM(H8:I8)>0,(H8+I8-J8),0)","v":9.6999999999999993},3,6.23,null,{"$f":"IF(SUM(L8:M8)>0,(L8+M8-N8),0)","v":9.23},2.4,7.75,null,{"$f":"IF(SUM(P8:Q8)>0,(P8+Q8-R8),0)","v":10.15},{"$f":"SUM(K8,O8,S8)","v":29.08}]
[4,"GK Šumperk",4,"Paraska","Anna",2008,"GK Šumperk",2.2999999999999998,6.2,null,{"$f":"IF(SUM(H9:I9)>0,(H9+I9-J9),0)","v":8.5},2.5,7.5,null,{"$f":"IF(SUM(L9:M9)>0,(L9+M9-N9),0)","v":10},2.1,7.85,null,{"$f":"IF(SUM(P9:Q9)>0,(P9+Q9-R9),0)","v":9.9499999999999993},{"$f":"SUM(K9,O9,S9)","v":28.45}]
[5,"GK Šumperk",5,"Paraska","Marie",2008,"GK Šumperk",2.1,8.1999999999999993,4,{"$f":"IF(SUM(H10:I10)>0,(H10+I10-J10),0)","v":6.2999999999999989},3,7.16,null,{"$f":"IF(SUM(L10:M10)>0,(L10+M10-N10),0)","v":10.16},2.2000000000000002,7.9,null,{"$f":"IF(SUM(P10:Q10)>0,(P10+Q10-R10),0)","v":10.100000000000001},{"$f":"SUM(K10,O10,S10)","v":26.560000000000002}]
[6,"GK Šumperk",6,"Diňová","Amélie Anděla",2008,"GK Šumperk",1.7,5.45,null,{"$f":"IF(SUM(H11:I11)>0,(H11+I11-J11),0)","v":7.15},2.9,6.56,null,{"$f":"IF(SUM(L11:M11)>0,(L11+M11-N11),0)","v":9.4599999999999991},1.6,7.05,0.5,{"$f":"IF(SUM(P11:Q11)>0,(P11+Q11-R11),0)","v":8.15},{"$f":"SUM(K11,O11,S11)","v":24.759999999999998}]
[7,"TJ Šumperk",7,"Šimková","Kristyna",2008,"TJ Šumperk",1.5,7.6,4,{"$f":"IF(SUM(H12:I12)>0,(H12+I12-J12),0)","v":5.0999999999999996},1.6,6.16,null,{"$f":"IF(SUM(L12:M12)>0,(L12+M12-N12),0)","v":7.76},1.3,8.0500000000000007,0.5,{"$f":"IF(SUM(P12:Q12)>0,(P12+Q12-R12),0)","v":8.8500000000000014},{"$f":"SUM(K12,O12,S12)","v":21.71}]
[{"$f":"IF(T13=T14,C13&\" - \"&C14,IF(T13=T12,C12&\" - \"&C13,C13))","v":8},"TJ Šumperk",8,"Šérová ","Jana",2008,"TJ Šumperk",1.6,6.65,4,{"$f":"IF(SUM(H13:I13)>0,(H13+I13-J13),0)","v":4.25},2.6,5.9,null,{"$f":"IF(SUM(L13:M13)>0,(L13+M13-N13),0)","v":8.5},1.4,7.15,0.5,{"$f":"IF(SUM(P13:Q13)>0,(P13+Q13-R13),0)","v":8.0500000000000007},{"$f":"SUM(K13,O13,S13)","v":20.8}]
[9,"KŠG-Liptovský Mikuláš",9,"Macková","Adela",2008,"KŠG-Liptovský Mikuláš",1.6,6.9,4,{"$f":"IF(SUM(H14:I14)>0,(H14+I14-J14),0)","v":4.5},1.5,6.23,null,{"$f":"IF(SUM(L14:M14)>0,(L14+M14-N14),0)","v":7.73},1.5,7.05,0.5,{"$f":"IF(SUM(P14:Q14)>0,(P14+Q14-R14),0)","v":8.0500000000000007},{"$f":"SUM(K14,O14,S14)","v":20.28}]
[11,"KŠG-Liptovský Mikuláš",11,"Budayová","Lucia",2008,"KŠG-Liptovský Mikuláš",1.6,5.6,4,{"$f":"IF(SUM(H15:I15)>0,(H15+I15-J15),0)","v":3.1999999999999993},1.6,5.86,null,{"$f":"IF(SUM(L15:M15)>0,(L15+M15-N15),0)","v":7.4600000000000009},1.5,6.65,0.5,{"$f":"IF(SUM(P15:Q15)>0,(P15+Q15-R15),0)","v":7.65},{"$f":"SUM(K15,O15,S15)","v":18.310000000000002}]
[12,"GK Šumperk",12,"Bruštíková","Rozálie",2008,"GK Šumperk",0.3,7.9,6,{"$f":"IF(SUM(H16:I16)>0,(H16+I16-J16),0)","v":2.2000000000000011},1.4,5.93,null,{"$f":"IF(SUM(L16:M16)>0,(L16+M16-N16),0)","v":7.33},1.2,6.45,0.5,{"$f":"IF(SUM(P16:Q16)>0,(P16+Q16-R16),0)","v":7.15},{"$f":"SUM(K16,O16,S16)","v":16.68}]
[13,"Tj Šumperk",13,"Tatoušková","Anna",2008,"Tj Šumperk",1,5.9,4,{"$f":"IF(SUM(H17:I17)>0,(H17+I17-J17),0)","v":2.9000000000000004},1.6,3.6,null,{"$f":"IF(SUM(L17:M17)>0,(L17+M17-N17),0)","v":5.2},1.3,7.75,0.5,{"$f":"IF(SUM(P17:Q17)>0,(P17+Q17-R17),0)","v":8.5500000000000007},{"$f":"SUM(K17,O17,S17)","v":16.650000000000002}]
[{"$f":"IF(T18=T19,C18&\" - \"&C19,IF(T18=T17,C17&\" - \"&C18,C18))","v":14},{"$f":"G18","v":"ŠK ŠG GY-TA Poprad"},14,"Dunajová","Saskia",2008,"ŠK ŠG GY-TA Poprad",0.9,5.75,6,{"$f":"IF(SUM(H18:I18)>0,(H18+I18-J18),0)","v":0.65000000000000036},1.6,5.23,null,{"$f":"IF(SUM(L18:M18)>0,(L18+M18-N18),0)","v":6.83},1.3,6,0.5,{"$f":"IF(SUM(P18:Q18)>0,(P18+Q18-R18),0)","v":6.8},{"$f":"SUM(K18,O18,S18)","v":14.280000000000001}]
[{"$f":"IF(T19=T20,C19&\" - \"&C20,IF(T19=T18,C18&\" - \"&C19,C19))","v":"15 - "},{"$f":"G19","v":"TJ Šumperk"},15,"Fabiánová","Marie",2008,"TJ Šumperk",null,null,null,{"$f":"IF(SUM(H19:I19)>0,(H19+I19-J19),0)","v":0},null,null,null,{"$f":"IF(SUM(L19:M19)>0,(L19+M19-N19),0)","v":0},null,null,null,{"$f":"IF(SUM(P19:Q19)>0,(P19+Q19-R19),0)","v":0},{"$f":"SUM(K19,O19,S19)","v":0}]
[{"$f":"IF(T20=T21,C20&\" - \"&C21,IF(T20=T19,C19&\" - \"&C20,C20))","v":" - "},null,null,null,null,null,null,null,null,null,{"$f":"IF(SUM(H20:I20)>0,(H20+I20-J20),0)","v":0},null,null,null,{"$f":"IF(SUM(L20:M20)>0,(L20+M20-N20),0)","v":0},null,null,null,{"$f":"IF(SUM(P20:Q20)>0,(P20+Q20-R20),0)","v":0},{"$f":"SUM(K20,O20,S20)","v":0}]
[{"$f":"IF(T21=T22,C21&\" - \"&C22,IF(T21=T20,C20&\" - \"&C21,C21))","v":" - "},{"$f":"G21","v":0},null,null,null,null,null,null,null,null,{"$f":"IF(SUM(H21:I21)>0,(H21+I21-J21),0)","v":0},null,null,null,{"$f":"IF(SUM(L21:M21)>0,(L21+M21-N21),0)","v":0},null,null,null,{"$f":"IF(SUM(P21:Q21)>0,(P21+Q21-R21),0)","v":0},{"$f":"SUM(K21,O21,S21)","v":0}]
[{"$f":"IF(T22=T23,C22&\" - \"&C23,IF(T22=T21,C21&\" - \"&C22,C22))","v":" - "},{"$f":"G22","v":0},null,null,null,null,null,null,null,null,{"$f":"IF(SUM(H22:I22)>0,(H22+I22-J22),0)","v":0},null,null,null,{"$f":"IF(SUM(L22:M22)>0,(L22+M22-N22),0)","v":0},null,null,null,{"$f":"IF(SUM(P22:Q22)>0,(P22+Q22-R22),0)","v":0},{"$f":"SUM(K22,O22,S22)","v":0}]
[null,null,null,null,null,null,null,null,null,null,{"$f":"IF(SUM(H23:I23)>0,(H23+I23-J23),0)","v":0},null,null,null,{"$f":"IF(SUM(L23:M23)>0,(L23+M23-N23),0)","v":0},null,null,null,{"$f":"IF(SUM(P23:Q23)>0,(P23+Q23-R23),0)","v":0},{"$f":"SUM(K23,O23,S23)","v":0}]
[{"$f":"IF(T24=T25,C24&\" - \"&C25,IF(T24=T23,C23&\" - \"&C24,C24))","v":"19 - 20"},{"$f":"G24","v":0},19,null,null,null,null,null,null,null,{"$f":"IF(SUM(H24:I24)>0,(H24+I24-J24),0)","v":0},null,null,null,{"$f":"IF(SUM(L24:M24)>0,(L24+M24-N24),0)","v":0},null,null,null,{"$f":"IF(SUM(P24:Q24)>0,(P24+Q24-R24),0)","v":0},{"$f":"SUM(K24,O24,S24)","v":0}]
["20 - 21",0,20,null,null,null,null,null,null,null,{"$f":"IF(SUM(H25:I25)>0,(H25+I25-J25),0)","v":0},null,null,null,{"$f":"IF(SUM(L25:M25)>0,(L25+M25-N25),0)","v":0},null,null,null,{"$f":"IF(SUM(P25:Q25)>0,(P25+Q25-R25),0)","v":0},{"$f":"SUM(K25,O25,S25)","v":0}]
["21 - 22",0,21,null,null,null,null,null,null,null,{"$f":"IF(SUM(H26:I26)>0,(H26+I26-J26),0)","v":0},null,null,null,{"$f":"IF(SUM(L26:M26)>0,(L26+M26-N26),0)","v":0},null,null,null,{"$f":"IF(SUM(P26:Q26)>0,(P26+Q26-R26),0)","v":0},{"$f":"SUM(K26,O26,S26)","v":0}]
["22 - 23",0,22,null,null,null,null,null,null,null,{"$f":"IF(SUM(H27:I27)>0,(H27+I27-J27),0)","v":0},null,null,null,{"$f":"IF(SUM(L27:M27)>0,(L27+M27-N27),0)","v":0},null,null,null,{"$f":"IF(SUM(P27:Q27)>0,(P27+Q27-R27),0)","v":0},{"$f":"SUM(K27,O27,S27)","v":0}]
["23 - 24",0,23,null,null,null,null,null,null,null,{"$f":"IF(SUM(H28:I28)>0,(H28+I28-J28),0)","v":0},null,null,null,{"$f":"IF(SUM(L28:M28)>0,(L28+M28-N28),0)","v":0},null,null,null,{"$f":"IF(SUM(P28:Q28)>0,(P28+Q28-R28),0)","v":0},{"$f":"SUM(K28,O28,S28)","v":0}]
["24 - 25",0,24,null,null,null,null,null,null,null,{"$f":"IF(SUM(H29:I29)>0,(H29+I29-J29),0)","v":0},null,null,null,{"$f":"IF(SUM(L29:M29)>0,(L29+M29-N29),0)","v":0},null,null,null,{"$f":"IF(SUM(P29:Q29)>0,(P29+Q29-R29),0)","v":0},{"$f":"SUM(K29,O29,S29)","v":0}]
["25 - 26",0,25,null,null,null,null,null,null,null,{"$f":"IF(SUM(H30:I30)>0,(H30+I30-J30),0)","v":0},null,null,null,{"$f":"IF(SUM(L30:M30)>0,(L30+M30-N30),0)","v":0},null,null,null,{"$f":"IF(SUM(P30:Q30)>0,(P30+Q30-R30),0)","v":0},{"$f":"SUM(K30,O30,S30)","v":0}]
["26 - 27",0,26,null,null,null,null,null,null,null,{"$f":"IF(SUM(H31:I31)>0,(H31+I31-J31),0)","v":0},null,null,null,{"$f":"IF(SUM(L31:M31)>0,(L31+M31-N31),0)","v":0},null,null,null,{"$f":"IF(SUM(P31:Q31)>0,(P31+Q31-R31),0)","v":0},{"$f":"SUM(K31,O31,S31)","v":0}]
["27 - 28",0,27,null,null,null,null,null,null,null,{"$f":"IF(SUM(H32:I32)>0,(H32+I32-J32),0)","v":0},null,null,null,{"$f":"IF(SUM(L32:M32)>0,(L32+M32-N32),0)","v":0},null,null,null,{"$f":"IF(SUM(P32:Q32)>0,(P32+Q32-R32),0)","v":0},{"$f":"SUM(K32,O32,S32)","v":0}]
["28 - 29",0,28,null,null,null,null,null,null,null,{"$f":"IF(SUM(H33:I33)>0,(H33+I33-J33),0)","v":0},null,null,null,{"$f":"IF(SUM(L33:M33)>0,(L33+M33-N33),0)","v":0},null,null,null,{"$f":"IF(SUM(P33:Q33)>0,(P33+Q33-R33),0)","v":0},{"$f":"SUM(K33,O33,S33)","v":0}]
["29 - 30",0,29,null,null,null,null,null,null,null,{"$f":"IF(SUM(H34:I34)>0,(H34+I34-J34),0)","v":0},null,null,null,{"$f":"IF(SUM(L34:M34)>0,(L34+M34-N34),0)","v":0},null,null,null,{"$f":"IF(SUM(P34:Q34)>0,(P34+Q34-R34),0)","v":0},{"$f":"SUM(K34,O34,S34)","v":0}]
["30 - 31",0,30,null,null,null,null,null,null,null,{"$f":"IF(SUM(H35:I35)>0,(H35+I35-J35),0)","v":0},null,null,null,{"$f":"IF(SUM(L35:M35)>0,(L35+M35-N35),0)","v":0},null,null,null,{"$f":"IF(SUM(P35:Q35)>0,(P35+Q35-R35),0)","v":0},{"$f":"SUM(K35,O35,S35)","v":0}]
["31 - 32",0,31,null,null,null,null,null,null,null,{"$f":"IF(SUM(H36:I36)>0,(H36+I36-J36),0)","v":0},null,null,null,{"$f":"IF(SUM(L36:M36)>0,(L36+M36-N36),0)","v":0},null,null,null,{"$f":"IF(SUM(P36:Q36)>0,(P36+Q36-R36),0)","v":0},{"$f":"SUM(K36,O36,S36)","v":0}]
["32 - 33",0,32,null,null,null,null,null,null,null,{"$f":"IF(SUM(H37:I37)>0,(H37+I37-J37),0)","v":0},null,null,null,{"$f":"IF(SUM(L37:M37)>0,(L37+M37-N37),0)","v":0},null,null,null,{"$f":"IF(SUM(P37:Q37)>0,(P37+Q37-R37),0)","v":0},{"$f":"SUM(K37,O37,S37)","v":0}]
["33 - ",0,33]
[]
[null,null,null,"Ředitel závodu: Mgr. Zdena Langerová",null,null,null,"Hlavní rozhodčí: Mgr. Kateřina Valová",null,null,null,null,null,null,null,"Rozhodčí:"]

{"sheet":"Kategorie II. - 2007","index":4,"n_rows":40,"n_cols":20,"rows_kept":40,"cut":false,"hidden":false,"merged":[]}
[null,null,null,null,null,null,"Memoriál Petry Urbáškové - 22. ročník"]
[null,null,null,null,null,null,"2018-04-24"]
[null,null,null,null,null,null,"Kategorie II."]
[]
["čítač","Oddíl","Poř.","Příjmení, Jméno",null,"Ročník","Oddíl","D","E","Pen.","S","D","E","Pen.","S","D","E","Pen.","S","Celkem"]
[{"$f":"IF(T6=T7,C6&\" - \"&C7,IF(T6=T5,C5&\" - \"&C6,C6))","v":1},{"$f":"G6","v":"TJ Sokol M.Ostrava 1"},1,"Hájková","Barbora",2007,"TJ Sokol M.Ostrava 1",2.2999999999999998,8.5,null,{"$f":"IF(SUM(H6:I6)>0,(H6+I6-J6),0)","v":10.8},3.6,8.5,null,{"$f":"IF(SUM(L6:M6)>0,(L6+M6-N6),0)","v":12.1},2.4,8.65,null,{"$f":"IF(SUM(P6:Q6)>0,(P6+Q6-R6),0)","v":11.05},{"$f":"SUM(K6,O6,S6)","v":33.950000000000003}]
[{"$f":"IF(T7=T8,C7&\" - \"&C8,IF(T7=T6,C6&\" - \"&C7,C7))","v":2},{"$f":"G7","v":"GK ŠK UMB B.Bystrica"},2,"Bažíková","Ema",2007,"GK ŠK UMB B.Bystrica",2.6,8.6999999999999993,null,{"$f":"IF(SUM(H7:I7)>0,(H7+I7-J7),0)","v":11.299999999999999},3.5,8.06,null,{"$f":"IF(SUM(L7:M7)>0,(L7+M7-N7),0)","v":11.56},2.6,8,null,{"$f":"IF(SUM(P7:Q7)>0,(P7+Q7-R7),0)","v":10.6},{"$f":"SUM(K7,O7,S7)","v":33.46}]
[{"$f":"IF(T8=T9,C8&\" - \"&C9,IF(T8=T7,C7&\" - \"&C8,C8))","v":3},{"$f":"G8","v":"GK Šumperk"},3,"Žandová","Sabina",2007,"GK Šumperk",2.7,8.25,null,{"$f":"IF(SUM(H8:I8)>0,(H8+I8-J8),0)","v":10.95},3.3,7.83,null,{"$f":"IF(SUM(L8:M8)>0,(L8+M8-N8),0)","v":11.129999999999999},2.4,8.65,null,{"$f":"IF(SUM(P8:Q8)>0,(P8+Q8-R8),0)","v":11.05},{"$f":"SUM(K8,O8,S8)","v":33.129999999999995}]
[{"$f":"IF(T9=T10,C9&\" - \"&C10,IF(T9=T8,C8&\" - \"&C9,C9))","v":4},{"$f":"G9","v":"TJ Sokol M.Ostrava 1"},4,"Pisková","Eliška",2007,"TJ Sokol M.Ostrava 1",2.4,8.0500000000000007,null,{"$f":"IF(SUM(H9:I9)>0,(H9+I9-J9),0)","v":10.450000000000001},3.6,7.23,null,{"$f":"IF(SUM(L9:M9)>0,(L9+M9-N9),0)","v":10.83},2.9,8.8000000000000007,null,{"$f":"IF(SUM(P9:Q9)>0,(P9+Q9-R9),0)","v":11.700000000000001},{"$f":"SUM(K9,O9,S9)","v":32.980000000000004}]
["1900-01-08",{"$f":"G10","v":"GK Šumperk"},5,"Friedlová","Kateřina",2007,"GK Šumperk",2.5,8.0500000000000007,null,{"$f":"IF(SUM(H10:I10)>0,(H10+I10-J10),0)","v":10.55},2.8,8.4600000000000009,null,{"$f":"IF(SUM(L10:M10)>0,(L10+M10-N10),0)","v":11.260000000000002},2.5,8.15,null,{"$f":"IF(SUM(P10:Q10)>0,(P10+Q10-R10),0)","v":10.65},{"$f":"SUM(K10,O10,S10)","v":32.46}]
[null,"KSG SK Přerov",6,"Bauerová","Karin",2007,"TJ Lokomotiva Pardubice",2.2999999999999998,8.4,null,{"$f":"IF(SUM(H11:I11)>0,(H11+I11-J11),0)","v":10.7},2.6,8,null,{"$f":"IF(SUM(L11:M11)>0,(L11+M11-N11),0)","v":10.6},2.5,8.25,null,{"$f":"IF(SUM(P11:Q11)>0,(P11+Q11-R11),0)","v":10.75},{"$f":"SUM(K11,O11,S11)","v":32.049999999999997}]
[{"$f":"IF(T12=T13,C12&\" - \"&C13,IF(T12=T11,C11&\" - \"&C12,C12))","v":7},{"$f":"G12","v":"TJ Šumperk"},7,"Gronychová","Neli",2007,"TJ Šumperk",2.4,6.6,null,{"$f":"IF(SUM(H12:I12)>0,(H12+I12-J12),0)","v":9},3,7.53,null,{"$f":"IF(SUM(L12:M12)>0,(L12+M12-N12),0)","v":10.530000000000001},2.1,8.35,null,{"$f":"IF(SUM(P12:Q12)>0,(P12+Q12-R12),0)","v":10.45},{"$f":"SUM(K12,O12,S12)","v":29.98}]
[8,"TJ Sokol Bučovice",8,"Hrabovská ","Klára",2007,"TJ Sokol Bučovice",1.7,7.1,null,{"$f":"IF(SUM(H13:I13)>0,(H13+I13-J13),0)","v":8.7999999999999989},2,7.93,null,{"$f":"IF(SUM(L13:M13)>0,(L13+M13-N13),0)","v":9.93},1.4,8.1,null,{"$f":"IF(SUM(P13:Q13)>0,(P13+Q13-R13),0)","v":9.5},{"$f":"SUM(K13,O13,S13)","v":28.229999999999997}]
[9,"TJ Sokol Kopřivnice",9,"Prokopová","Tereza",2007,"TJ Sokol Kopřivnice",1.7,7.15,null,{"$f":"IF(SUM(H14:I14)>0,(H14+I14-J14),0)","v":8.85},2.8,7,null,{"$f":"IF(SUM(L14:M14)>0,(L14+M14-N14),0)","v":9.8000000000000007},2.2000000000000002,7.35,null,{"$f":"IF(SUM(P14:Q14)>0,(P14+Q14-R14),0)","v":9.5500000000000007},{"$f":"SUM(K14,O14,S14)","v":28.2}]
[10,"ŠK ŠG GY-TA Poprad",10,"Husáková","Daniela",2007,"ŠK ŠG GY-TA Poprad",1.7,7.55,null,{"$f":"IF(SUM(H15:I15)>0,(H15+I15-J15),0)","v":9.25},2.2000000000000002,6.46,null,{"$f":"IF(SUM(L15:M15)>0,(L15+M15-N15),0)","v":8.66},2,6.95,null,{"$f":"IF(SUM(P15:Q15)>0,(P15+Q15-R15),0)","v":8.9499999999999993},{"$f":"SUM(K15,O15,S15)","v":26.86}]
[11,"GK Šumperk",11,"Bruštíková"," Amélie",2007,"GK Šumperk",1,7.6,4,{"$f":"IF(SUM(H16:I16)>0,(H16+I16-J16),0)","v":4.5999999999999996},2.5,6.63,null,{"$f":"IF(SUM(L16:M16)>0,(L16+M16-N16),0)","v":9.129999999999999},1.4,7.6,0.5,{"$f":"IF(SUM(P16:Q16)>0,(P16+Q16-R16),0)","v":8.5},{"$f":"SUM(K16,O16,S16)","v":22.229999999999997}]
[12,"KSG SK Přerov",12,"Zaoralová ","Nikol",2007,"KSG SK Přerov",1.7,4.7,null,{"$f":"IF(SUM(H17:I17)>0,(H17+I17-J17),0)","v":6.4},1.6,4.5,null,{"$f":"IF(SUM(L17:M17)>0,(L17+M17-N17),0)","v":6.1},1.9,6.55,null,{"$f":"IF(SUM(P17:Q17)>0,(P17+Q17-R17),0)","v":8.4499999999999993},{"$f":"SUM(K17,O17,S17)","v":20.95}]
[13,"GK Šumperk",13,"Machytková","Julie",2007,"GK Šumperk",1,7.4,4,{"$f":"IF(SUM(H18:I18)>0,(H18+I18-J18),0)","v":4.4000000000000004},2.1,6.1,null,{"$f":"IF(SUM(L18:M18)>0,(L18+M18-N18),0)","v":8.1999999999999993},1.4,7.05,0.5,{"$f":"IF(SUM(P18:Q18)>0,(P18+Q18-R18),0)","v":7.9499999999999993},{"$f":"SUM(K18,O18,S18)","v":20.549999999999997}]
[14,"KŠG-Liptovský Mikuláš",14,"Mikušová","Sandra",2007,"KŠG-Liptovský Mikuláš",1,7.15,4,{"$f":"IF(SUM(H19:I19)>0,(H19+I19-J19),0)","v":4.1500000000000004},2,5.96,null,{"$f":"IF(SUM(L19:M19)>0,(L19+M19-N19),0)","v":7.96},1.4,6.15,0.5,{"$f":"IF(SUM(P19:Q19)>0,(P19+Q19-R19),0)","v":7.0500000000000007},{"$f":"SUM(K19,O19,S19)","v":19.16}]
["15 - 16",0,15,null,null,null,null,null,null,null,{"$f":"IF(SUM(H20:I20)>0,(H20+I20-J20),0)","v":0},null,null,null,{"$f":"IF(SUM(L20:M20)>0,(L20+M20-N20),0)","v":0},null,null,null,{"$f":"IF(SUM(P20:Q20)>0,(P20+Q20-R20),0)","v":0},{"$f":"SUM(K20,O20,S20)","v":0}]
["16 - 17",0,16,null,null,null,null,null,null,null,{"$f":"IF(SUM(H21:I21)>0,(H21+I21-J21),0)","v":0},null,null,null,{"$f":"IF(SUM(L21:M21)>0,(L21+M21-N21),0)","v":0},null,null,null,{"$f":"IF(SUM(P21:Q21)>0,(P21+Q21-R21),0)","v":0},{"$f":"SUM(K21,O21,S21)","v":0}]
["17 - 18",0,17,null,null,null,null,null,null,null,{"$f":"IF(SUM(H22:I22)>0,(H22+I22-J22),0)","v":0},null,null,null,{"$f":"IF(SUM(L22:M22)>0,(L22+M22-N22),0)","v":0},null,null,null,{"$f":"IF(SUM(P22:Q22)>0,(P22+Q22-R22),0)","v":0},{"$f":"SUM(K22,O22,S22)","v":0}]
["18 - 19",0,18,null,null,null,null,null,null,null,{"$f":"IF(SUM(H23:I23)>0,(H23+I23-J23),0)","v":0},null,null,null,{"$f":"IF(SUM(L23:M23)>0,(L23+M23-N23),0)","v":0},null,null,null,{"$f":"IF(SUM(P23:Q23)>0,(P23+Q23-R23),0)","v":0},{"$f":"SUM(K23,O23,S23)","v":0}]
["19 - 20",0,19,null,null,null,null,null,null,null,{"$f":"IF(SUM(H24:I24)>0,(H24+I24-J24),0)","v":0},null,null,null,{"$f":"IF(SUM(L24:M24)>0,(L24+M24-N24),0)","v":0},null,null,null,{"$f":"IF(SUM(P24:Q24)>0,(P24+Q24-R24),0)","v":0},{"$f":"SUM(K24,O24,S24)","v":0}]
["20 - 21",0,20,null,null,null,null,null,null,null,{"$f":"IF(SUM(H25:I25)>0,(H25+I25-J25),0)","v":0},null,null,null,{"$f":"IF(SUM(L25:M25)>0,(L25+M25-N25),0)","v":0},null,null,null,{"$f":"IF(SUM(P25:Q25)>0,(P25+Q25-R25),0)","v":0},{"$f":"SUM(K25,O25,S25)","v":0}]
["21 - 22",0,21,null,null,null,null,null,null,null,{"$f":"IF(SUM(H26:I26)>0,(H26+I26-J26),0)","v":0},null,null,null,{"$f":"IF(SUM(L26:M26)>0,(L26+M26-N26),0)","v":0},null,null,null,{"$f":"IF(SUM(P26:Q26)>0,(P26+Q26-R26),0)","v":0},{"$f":"SUM(K26,O26,S26)","v":0}]
["22 - 23",0,22,null,null,null,null,null,null,null,{"$f":"IF(SUM(H27:I27)>0,(H27+I27-J27),0)","v":0},null,null,null,{"$f":"IF(SUM(L27:M27)>0,(L27+M27-N27),0)","v":0},null,null,null,{"$f":"IF(SUM(P27:Q27)>0,(P27+Q27-R27),0)","v":0},{"$f":"SUM(K27,O27,S27)","v":0}]
["23 - 24",0,23,null,null,null,null,null,null,null,{"$f":"IF(SUM(H28:I28)>0,(H28+I28-J28),0)","v":0},null,null,null,{"$f":"IF(SUM(L28:M28)>0,(L28+M28-N28),0)","v":0},null,null,null,{"$f":"IF(SUM(P28:Q28)>0,(P28+Q28-R28),0)","v":0},{"$f":"SUM(K28,O28,S28)","v":0}]
["24 - 25",0,24,null,null,null,null,null,null,null,{"$f":"IF(SUM(H29:I29)>0,(H29+I29-J29),0)","v":0},null,null,null,{"$f":"IF(SUM(L29:M29)>0,(L29+M29-N29),0)","v":0},null,null,null,{"$f":"IF(SUM(P29:Q29)>0,(P29+Q29-R29),0)","v":0},{"$f":"SUM(K29,O29,S29)","v":0}]
[{"$f":"IF(T30=T31,C30&\" - \"&C31,IF(T30=T29,C29&\" - \"&C30,C30))","v":"25 - 26"},{"$f":"G30","v":0},25,null,null,null,null,null,null,null,{"$f":"IF(SUM(H30:I30)>0,(H30+I30-J30),0)","v":0},null,null,null,{"$f":"IF(SUM(L30:M30)>0,(L30+M30-N30),0)","v":0},null,null,null,{"$f":"IF(SUM(P30:Q30)>0,(P30+Q30-R30),0)","v":0},{"$f":"SUM(K30,O30,S30)","v":0}]
["26 - 27",0,26,null,null,null,null,null,null,null,{"$f":"IF(SUM(H31:I31)>0,(H31+I31-J31),0)","v":0},null,null,null,{"$f":"IF(SUM(L31:M31)>0,(L31+M31-N31),0)","v":0},null,null,null,{"$f":"IF(SUM(P31:Q31)>0,(P31+Q31-R31),0)","v":0},{"$f":"SUM(K31,O31,S31)","v":0}]
["27 - 28",0,27,null,null,null,null,null,null,null,{"$f":"IF(SUM(H32:I32)>0,(H32+I32-J32),0)","v":0},null,null,null,{"$f":"IF(SUM(L32:M32)>0,(L32+M32-N32),0)","v":0},null,null,null,{"$f":"IF(SUM(P32:Q32)>0,(P32+Q32-R32),0)","v":0},{"$f":"SUM(K32,O32,S32)","v":0}]
["28 - 29",0,28,null,null,null,null,null,null,null,{"$f":"IF(SUM(H33:I33)>0,(H33+I33-J33),0)","v":0},null,null,null,{"$f":"IF(SUM(L33:M33)>0,(L33+M33-N33),0)","v":0},null,null,null,{"$f":"IF(SUM(P33:Q33)>0,(P33+Q33-R33),0)","v":0},{"$f":"SUM(K33,O33,S33)","v":0}]
["29 - 30",0,29,null,null,null,null,null,null,null,{"$f":"IF(SUM(H34:I34)>0,(H34+I34-J34),0)","v":0},null,null,null,{"$f":"IF(SUM(L34:M34)>0,(L34+M34-N34),0)","v":0},null,null,null,{"$f":"IF(SUM(P34:Q34)>0,(P34+Q34-R34),0)","v":0},{"$f":"SUM(K34,O34,S34)","v":0}]
["30 - 31",0,30,null,null,null,null,null,null,null,{"$f":"IF(SUM(H35:I35)>0,(H35+I35-J35),0)","v":0},null,null,null,{"$f":"IF(SUM(L35:M35)>0,(L35+M35-N35),0)","v":0},null,null,null,{"$f":"IF(SUM(P35:Q35)>0,(P35+Q35-R35),0)","v":0},{"$f":"SUM(K35,O35,S35)","v":0}]
["31 - 32",0,31,null,null,null,null,null,null,null,{"$f":"IF(SUM(H36:I36)>0,(H36+I36-J36),0)","v":0},null,null,null,{"$f":"IF(SUM(L36:M36)>0,(L36+M36-N36),0)","v":0},null,null,null,{"$f":"IF(SUM(P36:Q36)>0,(P36+Q36-R36),0)","v":0},{"$f":"SUM(K36,O36,S36)","v":0}]
["32 - 33",0,32,null,null,null,null,null,null,null,{"$f":"IF(SUM(H37:I37)>0,(H37+I37-J37),0)","v":0},null,null,null,{"$f":"IF(SUM(L37:M37)>0,(L37+M37-N37),0)","v":0},null,null,null,{"$f":"IF(SUM(P37:Q37)>0,(P37+Q37-R37),0)","v":0},{"$f":"SUM(K37,O37,S37)","v":0}]
["33 - ",0,33]
[]
[null,null,null,"Ředitel závodu: Mgr. Zdena Langerová",null,null,null,"Hlavní rozhodčí: Mgr. Kateřina Valová",null,null,null,null,null,null,null,"Rozhodčí:"]

{"sheet":"Kategorie III. - 2006","index":5,"n_rows":33,"n_cols":20,"rows_kept":33,"cut":false,"hidden":false,"merged":[]}
[null,null,null,null,null,null,"Memoriál Petry Urbáškové - 23. ročník"]
[null,null,null,null,null,null,"2018-04-24"]
[null,null,null,null,null,null,"Kategorie III."]
[]
["čítač","Oddíl","Poř.","Příjmení, Jméno",null,"Ročník","Oddíl","D","E","Pen.","S","D","E","Pen.","S","D","E","Pen.","S","Celkem"]
[{"$f":"IF(T6=T7,C6&\" - \"&C7,IF(T6=T5,C5&\" - \"&C6,C6))","v":1},{"$f":"G6","v":"GK Šumperk"},1,"Peterková","Klára",2006,"GK Šumperk",1.3,8,null,{"$f":"IF(SUM(H6:I6)>0,(H6+I6-J6),0)","v":9.3000000000000007},4.4000000000000004,8.9499999999999993,null,{"$f":"IF(SUM(L6:M6)>0,(L6+M6-N6),0)","v":13.35},3.2,8.0500000000000007,null,{"$f":"IF(SUM(P6:Q6)>0,(P6+Q6-R6),0)","v":11.25},{"$f":"SUM(K6,O6,S6)","v":33.9}]
[2,"TJ Lokomotiva Pardubice",2,"Sirůčková","Anna",2006,"TJ Lokomotiva Pardubice",1,8.1,null,{"$f":"IF(SUM(H7:I7)>0,(H7+I7-J7),0)","v":9.1},3.5,7.95,null,{"$f":"IF(SUM(L7:M7)>0,(L7+M7-N7),0)","v":11.45},3,7.55,null,{"$f":"IF(SUM(P7:Q7)>0,(P7+Q7-R7),0)","v":10.55},{"$f":"SUM(K7,O7,S7)","v":31.099999999999998}]
[3,"GK ŠK UMB B.Bystrica",3,"Galátová","Nina",2006,"GK ŠK UMB B.Bystrica",1.1000000000000001,8.25,null,{"$f":"IF(SUM(H8:I8)>0,(H8+I8-J8),0)","v":9.35},3.8,6.25,null,{"$f":"IF(SUM(L8:M8)>0,(L8+M8-N8),0)","v":10.050000000000001},2.9,6.95,null,{"$f":"IF(SUM(P8:Q8)>0,(P8+Q8-R8),0)","v":9.85},{"$f":"SUM(K8,O8,S8)","v":29.25}]
[4,"TJ Sokol M.Ostrava 1",4,"Cívelová","Kristina",2006,"TJ Sokol M.Ostrava 1",0.8,7.3,null,{"$f":"IF(SUM(H9:I9)>0,(H9+I9-J9),0)","v":8.1},3.5,8.5,null,{"$f":"IF(SUM(L9:M9)>0,(L9+M9-N9),0)","v":12},2.2000000000000002,6.65,null,{"$f":"IF(SUM(P9:Q9)>0,(P9+Q9-R9),0)","v":8.8500000000000014},{"$f":"SUM(K9,O9,S9)","v":28.950000000000003}]
[5,"TJ Sokol M.Ostrava 1",5,"Pačutová","Kateřina",2006,"TJ Sokol M.Ostrava 1",0.8,7.45,null,{"$f":"IF(SUM(H10:I10)>0,(H10+I10-J10),0)","v":8.25},2.9,6.3,null,{"$f":"IF(SUM(L10:M10)>0,(L10+M10-N10),0)","v":9.1999999999999993},2.1,7.9,null,{"$f":"IF(SUM(P10:Q10)>0,(P10+Q10-R10),0)","v":10},{"$f":"SUM(K10,O10,S10)","v":27.45}]
[6,"GK Šumperk",6,"Diňová ","Berenika",2006,"GK Šumperk",1,7.3,null,{"$f":"IF(SUM(H11:I11)>0,(H11+I11-J11),0)","v":8.3000000000000007},2.9,7.4,null,{"$f":"IF(SUM(L11:M11)>0,(L11+M11-N11),0)","v":10.3},2.2000000000000002,6.1,null,{"$f":"IF(SUM(P11:Q11)>0,(P11+Q11-R11),0)","v":8.3000000000000007},{"$f":"SUM(K11,O11,S11)","v":26.900000000000002}]
[7,"GK Šumperk",7,"Hvižďová","Julie",2006,"GK Šumperk",0.9,6.9,null,{"$f":"IF(SUM(H12:I12)>0,(H12+I12-J12),0)","v":7.8000000000000007},2.9,7.05,null,{"$f":"IF(SUM(L12:M12)>0,(L12+M12-N12),0)","v":9.9499999999999993},2.2000000000000002,6.35,null,{"$f":"IF(SUM(P12:Q12)>0,(P12+Q12-R12),0)","v":8.5500000000000007},{"$f":"SUM(K12,O12,S12)","v":26.3}]
[8,"KSG SK Přerov",8,"Krumpholzová ","Justýna",2006,"KSG SK Přerov",0.8,6.2,null,{"$f":"IF(SUM(H13:I13)>0,(H13+I13-J13),0)","v":7},2.6,5.85,null,{"$f":"IF(SUM(L13:M13)>0,(L13+M13-N13),0)","v":8.4499999999999993},2.2000000000000002,6.6,null,{"$f":"IF(SUM(P13:Q13)>0,(P13+Q13-R13),0)","v":8.8000000000000007},{"$f":"SUM(K13,O13,S13)","v":24.25}]
[9,"TJ Sokol Bučovice",9,"Duráková","Kateřina",2006,"TJ Sokol Bučovice",0.5,6.65,4,{"$f":"IF(SUM(H14:I14)>0,(H14+I14-J14),0)","v":3.1500000000000004},2,7.05,null,{"$f":"IF(SUM(L14:M14)>0,(L14+M14-N14),0)","v":9.0500000000000007},1.6,6.8,null,{"$f":"IF(SUM(P14:Q14)>0,(P14+Q14-R14),0)","v":8.4},{"$f":"SUM(K14,O14,S14)","v":20.6}]
[10,"ŠK ŠG GY-TA Poprad",10,"Handulová","Rebeka",2006,"ŠK ŠG GY-TA Poprad",0.6,6.6,4,{"$f":"IF(SUM(H15:I15)>0,(H15+I15-J15),0)","v":3.1999999999999993},2.2999999999999998,6.8,null,{"$f":"IF(SUM(L15:M15)>0,(L15+M15-N15),0)","v":9.1},1.5,3.75,null,{"$f":"IF(SUM(P15:Q15)>0,(P15+Q15-R15),0)","v":5.25},{"$f":"SUM(K15,O15,S15)","v":17.549999999999997}]
[11,"KŠG-Liptovský Mikuláš",11,"Jírovcová","Natália-Romana",2006,"KŠG-Liptovský Mikuláš",0.3,5.75,6,{"$f":"IF(SUM(H16:I16)>0,(H16+I16-J16),0)","v":4.9999999999999822E-2},2.2000000000000002,6.5,null,{"$f":"IF(SUM(L16:M16)>0,(L16+M16-N16),0)","v":8.6999999999999993},1.7,6.25,null,{"$f":"IF(SUM(P16:Q16)>0,(P16+Q16-R16),0)","v":7.95},{"$f":"SUM(K16,O16,S16)","v":16.7}]
[12,"KSG SK Přerov",12,"Polidorová ","Eliška",2006,"KSG SK Přerov",0.3,6.25,6,{"$f":"IF(SUM(H17:I17)>0,(H17+I17-J17),0)","v":0.54999999999999982},2.1,5.15,null,{"$f":"IF(SUM(L17:M17)>0,(L17+M17-N17),0)","v":7.25},1.4,5.45,null,{"$f":"IF(SUM(P17:Q17)>0,(P17+Q17-R17),0)","v":6.85},{"$f":"SUM(K17,O17,S17)","v":14.649999999999999}]
[13,"KSG SK Přerov",13,"Gadasová","Monika",2006,"KSG SK Přerov",0.4,3.65,6,0.4,2.8,3.95,null,{"$f":"IF(SUM(L18:M18)>0,(L18+M18-N18),0)","v":6.75},1.5,5.05,null,{"$f":"IF(SUM(P18:Q18)>0,(P18+Q18-R18),0)","v":6.55},{"$f":"SUM(K18,O18,S18)","v":13.7}]
[14,"GK Šumperk",14,"Kubíčková","Eliška",2006,"GK Šumperk",0.2,6.95,8,0.2,1.8,3.5,5,{"$f":"IF(SUM(L19:M19)>0,(L19+M19-N19),0)","v":0.29999999999999982},1.4,6.15,null,{"$f":"IF(SUM(P19:Q19)>0,(P19+Q19-R19),0)","v":7.5500000000000007},{"$f":"SUM(K19,O19,S19)","v":8.0500000000000007}]
["15 - 16",0,15,null,null,null,null,null,null,null,{"$f":"IF(SUM(H20:I20)>0,(H20+I20-J20),0)","v":0},null,null,null,{"$f":"IF(SUM(L20:M20)>0,(L20+M20-N20),0)","v":0},null,null,null,{"$f":"IF(SUM(P20:Q20)>0,(P20+Q20-R20),0)","v":0},{"$f":"SUM(K20,O20,S20)","v":0}]
["16 - 17",0,16,null,null,null,null,null,null,null,{"$f":"IF(SUM(H21:I21)>0,(H21+I21-J21),0)","v":0},null,null,null,{"$f":"IF(SUM(L21:M21)>0,(L21+M21-N21),0)","v":0},null,null,null,{"$f":"IF(SUM(P21:Q21)>0,(P21+Q21-R21),0)","v":0},{"$f":"SUM(K21,O21,S21)","v":0}]
["17 - 18",0,17,null,null,null,null,null,null,null,{"$f":"IF(SUM(H22:I22)>0,(H22+I22-J22),0)","v":0},null,null,null,{"$f":"IF(SUM(L22:M22)>0,(L22+M22-N22),0)","v":0},null,null,null,{"$f":"IF(SUM(P22:Q22)>0,(P22+Q22-R22),0)","v":0},{"$f":"SUM(K22,O22,S22)","v":0}]
["18 - 19",0,18,null,null,null,null,null,null,null,{"$f":"IF(SUM(H23:I23)>0,(H23+I23-J23),0)","v":0},null,null,null,{"$f":"IF(SUM(L23:M23)>0,(L23+M23-N23),0)","v":0},null,null,null,{"$f":"IF(SUM(P23:Q23)>0,(P23+Q23-R23),0)","v":0},{"$f":"SUM(K23,O23,S23)","v":0}]
["19 - 20",0,19,null,null,null,null,null,null,null,{"$f":"IF(SUM(H24:I24)>0,(H24+I24-J24),0)","v":0},null,null,null,{"$f":"IF(SUM(L24:M24)>0,(L24+M24-N24),0)","v":0},null,null,null,{"$f":"IF(SUM(P24:Q24)>0,(P24+Q24-R24),0)","v":0},{"$f":"SUM(K24,O24,S24)","v":0}]
["20 - 21",0,20,null,null,null,null,null,null,null,{"$f":"IF(SUM(H25:I25)>0,(H25+I25-J25),0)","v":0},null,null,null,{"$f":"IF(SUM(L25:M25)>0,(L25+M25-N25),0)","v":0},null,null,null,{"$f":"IF(SUM(P25:Q25)>0,(P25+Q25-R25),0)","v":0},{"$f":"SUM(K25,O25,S25)","v":0}]
["21 - 22",0,21,null,null,null,null,null,null,null,{"$f":"IF(SUM(H26:I26)>0,(H26+I26-J26),0)","v":0},null,null,null,{"$f":"IF(SUM(L26:M26)>0,(L26+M26-N26),0)","v":0},null,null,null,{"$f":"IF(SUM(P26:Q26)>0,(P26+Q26-R26),0)","v":0},{"$f":"SUM(K26,O26,S26)","v":0}]
["22 - 23",0,22,null,null,null,null,null,null,null,{"$f":"IF(SUM(H27:I27)>0,(H27+I27-J27),0)","v":0},null,null,null,{"$f":"IF(SUM(L27:M27)>0,(L27+M27-N27),0)","v":0},null,null,null,{"$f":"IF(SUM(P27:Q27)>0,(P27+Q27-R27),0)","v":0},{"$f":"SUM(K27,O27,S27)","v":0}]
["23 - 24",0,23,null,null,null,null,null,null,null,{"$f":"IF(SUM(H28:I28)>0,(H28+I28-J28),0)","v":0},null,null,null,{"$f":"IF(SUM(L28:M28)>0,(L28+M28-N28),0)","v":0},null,null,null,{"$f":"IF(SUM(P28:Q28)>0,(P28+Q28-R28),0)","v":0},{"$f":"SUM(K28,O28,S28)","v":0}]
["24 - 25",0,24,null,null,null,null,null,null,null,{"$f":"IF(SUM(H29:I29)>0,(H29+I29-J29),0)","v":0},null,null,null,{"$f":"IF(SUM(L29:M29)>0,(L29+M29-N29),0)","v":0},null,null,null,{"$f":"IF(SUM(P29:Q29)>0,(P29+Q29-R29),0)","v":0},{"$f":"SUM(K29,O29,S29)","v":0}]
["25 - ",0,25,null,null,null,null,null,null,null,{"$f":"IF(SUM(H30:I30)>0,(H30+I30-J30),0)","v":0},null,null,null,{"$f":"IF(SUM(L30:M30)>0,(L30+M30-N30),0)","v":0},null,null,null,{"$f":"IF(SUM(P30:Q30)>0,(P30+Q30-R30),0)","v":0},{"$f":"SUM(K30,O30,S30)","v":0}]
[]
[]
[null,null,null,"Ředitel závodu: Mgr. Zdena Langerová",null,null,null,"Hlavní rozhodčí: Mgr. Kateřina Valová",null,null,null,null,null,null,null,"Rozhodčí:"]

{"sheet":"Kategorie III. - 2005 a starší","index":6,"n_rows":33,"n_cols":16384,"rows_kept":33,"cut":false,"hidden":false,"merged":[]}
[null,null,null,null,null,null,"Memoriál Petry Urbáškové - 23. ročník"]
[null,null,null,null,null,null,"2018-04-24"]
[null,null,null,null,null,null,"Kategorie III."]
[]
["čítač","Oddíl","Poř.","Příjmení, Jméno",null,"Ročník","Oddíl","D","E","Pen.","S","D","E","Pen.","S","D","E","Pen.","S","Celkem"]
[{"$f":"IF(T6=T7,C6&\" - \"&C7,IF(T6=T5,C5&\" - \"&C6,C6))","v":1},{"$f":"G6","v":"TJ Sokol M.Ostrava 1"},1,"Schneiderová ","Barbora",2001,"TJ Sokol M.Ostrava 1",2.1,8.35,null,{"$f":"IF(SUM(H6:I6)>0,(H6+I6-J6),0)","v":10.45},4.3,7.45,null,{"$f":"IF(SUM(L6:M6)>0,(L6+M6-N6),0)","v":11.75},4.0999999999999996,7.65,null,{"$f":"IF(SUM(P6:Q6)>0,(P6+Q6-R6),0)","v":11.75},{"$f":"SUM(K6,O6,S6)","v":33.950000000000003}]
[{"$f":"IF(T7=T8,C7&\" - \"&C8,IF(T7=T6,C6&\" - \"&C7,C7))","v":2},{"$f":"G7","v":"TJ Lokomotiva Pardubice"},2,"Šťovíčková","Eliška",2004,"TJ Lokomotiva Pardubice",1,8.5500000000000007,null,{"$f":"IF(SUM(H7:I7)>0,(H7+I7-J7),0)","v":9.5500000000000007},3.4,7.95,null,{"$f":"IF(SUM(L7:M7)>0,(L7+M7-N7),0)","v":11.35},3,8.0500000000000007,null,{"$f":"IF(SUM(P7:Q7)>0,(P7+Q7-R7),0)","v":11.05},{"$f":"SUM(K7,O7,S7)","v":31.95}]
["2018-04-03","ŠK ŠG GY-TA Poprad",3,"Jaklová","Klára",2004,"TJ Sokol M.Ostrava 1",0.9,8.35,null,{"$f":"IF(SUM(H8:I8)>0,(H8+I8-J8),0)","v":9.25},3.6,7.2,null,{"$f":"IF(SUM(L8:M8)>0,(L8+M8-N8),0)","v":10.8},2.8,8,null,{"$f":"IF(SUM(P8:Q8)>0,(P8+Q8-R8),0)","v":10.8},{"$f":"SUM(K8,O8,S8)","v":30.85}]
["2018-05-04","TJ Lokomotiva Pardubice",4,"Smolková","Katarína",2004,"GK ŠK UMB B.Bystrica",1.3,8.5,null,{"$f":"IF(SUM(H9:I9)>0,(H9+I9-J9),0)","v":9.8000000000000007},3.6,6.35,null,{"$f":"IF(SUM(L9:M9)>0,(L9+M9-N9),0)","v":9.9499999999999993},2.4,7.5,null,{"$f":"IF(SUM(P9:Q9)>0,(P9+Q9-R9),0)","v":9.9},{"$f":"SUM(K9,O9,S9)","v":29.65}]
["2018-06-05","TJ Sokol M.Ostrava 1",5,"Šérová ","Eliška",2005,"TJ Šumperk",0.9,6.75,null,{"$f":"IF(SUM(H10:I10)>0,(H10+I10-J10),0)","v":7.65},2.7,8.15,null,{"$f":"IF(SUM(L10:M10)>0,(L10+M10-N10),0)","v":10.850000000000001},2.1,5.85,null,{"$f":"IF(SUM(P10:Q10)>0,(P10+Q10-R10),0)","v":7.9499999999999993},{"$f":"SUM(K10,O10,S10)","v":26.45}]
["6_7","TJ Sokol M.Ostrava 1",6,"Osladilová","Adéla",2005,"GK Šumperk",0.5,8.3000000000000007,4,{"$f":"IF(SUM(H11:I11)>0,(H11+I11-J11),0)","v":4.8000000000000007},2.8,7.75,null,{"$f":"IF(SUM(L11:M11)>0,(L11+M11-N11),0)","v":10.55},2.4,7.85,null,{"$f":"IF(SUM(P11:Q11)>0,(P11+Q11-R11),0)","v":10.25},{"$f":"SUM(K11,O11,S11)","v":25.6}]
["2018-08-07","TJ Sokol Bučovice",7,"Figová                                              Klaudia","Klaudia",2001,"KŠG-Liptovský Mikuláš",0.5,5.75,4,{"$f":"IF(SUM(H12:I12)>0,(H12+I12-J12),0)","v":2.25},2.1,7.45,null,{"$f":"IF(SUM(L12:M12)>0,(L12+M12-N12),0)","v":9.5500000000000007},1.5,6,null,{"$f":"IF(SUM(P12:Q12)>0,(P12+Q12-R12),0)","v":7.5},{"$f":"SUM(K12,O12,S12)","v":19.3}]
["2018-09-08","KŠG-Liptovský Mikuláš",8,"Hanousková","Tereza",2005,"TJ Sokol Bučovice",0.4,6.6,6,{"$f":"IF(SUM(H13:I13)>0,(H13+I13-J13),0)","v":1},2.5,6.8,null,{"$f":"IF(SUM(L13:M13)>0,(L13+M13-N13),0)","v":9.3000000000000007},1.5,6.4,null,{"$f":"IF(SUM(P13:Q13)>0,(P13+Q13-R13),0)","v":7.9},{"$f":"SUM(K13,O13,S13)","v":18.200000000000003}]
["2018-10-09","KŠG-Liptovský Mikuláš",9,"Groussard","Sarah",2005,"ŠK ŠG GY-TA Poprad",0.5,7.25,4,{"$f":"IF(SUM(H14:I14)>0,(H14+I14-J14),0)","v":3.75},2.2000000000000002,6.95,null,{"$f":"IF(SUM(L14:M14)>0,(L14+M14-N14),0)","v":9.15},1.9,3.3,null,{"$f":"IF(SUM(P14:Q14)>0,(P14+Q14-R14),0)","v":5.1999999999999993},{"$f":"SUM(K14,O14,S14)","v":18.100000000000001}]
[{"$f":"IF(T15=T16,C15&\" - \"&C16,IF(T15=T14,C14&\" - \"&C15,C15))","v":10},"TJ Šumperk",10,"Balejová                                          Diana","Diana",2005,"KŠG-Liptovský Mikuláš",0.2,8.5500000000000007,8,{"$f":"IF(SUM(H15:I15)>0,(H15+I15-J15),0)","v":0.75},1.1000000000000001,5.85,4,{"$f":"IF(SUM(L15:M15)>0,(L15+M15-N15),0)","v":2.9499999999999993},1.3,3.55,null,{"$f":"IF(SUM(P15:Q15)>0,(P15+Q15-R15),0)","v":4.8499999999999996},{"$f":"SUM(K15,O15,S15)","v":8.5499999999999989},null,null,null,null,null,null,null,null,null,null,null,null,null,null,null,null,null,null,null,null,null,null,null,null,null,null,null,null,null,null,null,null,null,null,null,null,null,null,null,null,null,null,null,null,null,null,null,null,null,null,null,null,null,null,null,null,null,null,null,null,null,null,null,null,null,null,null,null,null,null,null,null,null,null,null,null,null,null,null,null,null,null,null,null,null,null,null,null,null,null,null,null,null,null,null,null,null,null,null,null,null,null,null,null,null,null,null,null,null,null,null,null,null,null,null,null,null,null,null,null,null,null,null,null,null,null,null,null,null,null,null,null,null,null,null,null,null,null,null,null,null,null,null,null,null,null,null,null,null,null,null,null,null,null,null,null,null,null,null,null,null,null,null,null,null,null,null,null,null,null,null,null,null,null,null,null,null,null,null,null,null,null,null,null,null,null,null,null,null,null,null,null,null,null,null,null,null,null,null,null,null,null,null,null,null,null,null,null,null,null,null,null,null,null,null,null,null,null,null,null,null,null,null,null,null,null,null,null,null,null,null,null,null,null,null,null,null,null,null,null,null,null,null,null,null,null,null,null,null,null,null,null,null,null,null,null,null,null,null,null,null,null,null,null,null,null,null,null,null,null,null,null,null,null,null,null,null,null,null,null,null,null,null,null,null,null,null,null,null,null,null,null,null,null,null,null,null,null,null,null,null,null,null,null,null,null,null,null,null,null,null,null,null,null,null,null,null,null,null,null,null,null,null,null,null,null,null,null,null,null,null,null,null,null,null,null,null,null,null,null,null,null,null,null,null,null,null,null,null,null,null,null,null,null,null,null,null,null,null,null,null,null,null,null,null,null,null,null,null,null,null,null,null,null,null,null,null,null,null,null,null,null,null,null,null,null,null,null,null,null,null,null,null,null,null,null,null,null,null,null,null,null,null,null,null,null,null,null,null,null,null,null,null,null,null,null,null,null,null,null,null,null,null,null,null,null,null,null,null,null,null,null,null,null,null,null,null,null,null,null,null,null,null,null,null,null,null,null,null,null,null,null,null,null,null,null,null,null,null,null,null,null,null,null,null,null,null,null,null,null,null,null,null,null,null,null,null,null,null,null,null,null,null,null,null,null,null,null,null,null,null,null,null,null,null,null,null,null,null,null,null,null,null,null,null,null,null,null,null,null,null,null,null,null,null,null,null,null,null,null,null,null,null,null,null,null,null,null,null,null,null,null,null,null,null,null,null,null,null,null,null,null,null,null,null,null,null,null,null,null,null,null,null,null,null,null,null,null,null,null,null,null,null,null,null,null,null,null,null,null,null,null,null,null,null,null,null,null,null,null,null,null,null,null,null,null,null,null,null,null,null,null,null,null,null,null,null,null,null,null,null,null,null,null,null,null,null,null,null,null,null,null,null,null,null,null,null,null,null,null,null,null,null,null,null,null,null,null,null,null,null,null,null,null,null,null,null,null,null,null,null,null,null,null,null,null,null,null,null,null,null,null,null,null,null,null,null,null,null,null,null,null,null,null,null,null,null,null,null,null,null,null,null,null,null,null,null,null,null,null,null,null,null,null,null,null,null,null,null,null,null,null,null,null,null,null,null,null,null,null,null,null,null,null,null,null,null,null,null,null,null,null,null,null,null,null,null,null,null,null,null,null,null,null,null,null,null,null,null,null,null,null,null,null,null,null,null,null,null,null,null,null,null,null,null,null,null,null,null,null,null,null,null,null,null,null,null,null,null,null,null,null,null,null,null,null,null,null,null,null,null,null,null,null,null,null,null,null,null,null,null,null,null,null,null,null,null,null,null,null,null,null,null,null,null,null,null,null,null,null,null,null,null,null,null,null,null,null,null,null,null,null,null,null,null,null,null,null,null,null,null,null,null,null,null,null,null,null,null,null,null,null,null,null,null,null,null,null,null,null,null,null,null,null,null,null,null,null,null,null,null,null,null,null,null,null,null,null,null,null,null,null,null,null,null,null,null,null,null,null,null,null,null,null,null,null,null,null,null,null,null,null,null,null,null,null,null,null,null,null,null,null,null,null,null,null,null,null,null,null,null,null,null,null,null,null,null,null,null,null,null,null,null,null,null,null,null,null,null,null,null,null,null,null,null,null,null,null,null,null,null,null,null,null,null,null,null,null,null,null,null,null,null,null,null,null,null,null,null,null,null,null,null,null,null,null,null,null,null,null,null,null,null,null,null,null,null,null,null,null,null,null,null,null,null,null,null,null,null,null,null,null,null,null,null,null,null,null,null,null,null,null,null,null,null,null,null,null,null,null,null,null,null,null,null,null,null,null,null,null,null,null,null,null,null,null,null,null,null,null,null,null,null,null,null,null,null,null,null,null,null,null,null,null,null,null,null,null,null,null,null,null,null,null,null,null,null,null,null,null,null,null,null,null,null,null,null,null,null,null,null,null,null,null,null,null,null,null,null,null,null,null,null,null,null,null,null,null,null,null,null,null,null,null,null,null,null,null,null,null,null,null,null,null,null,null,null,null,null,null,null,null,null,null,null,null,null,null,null,null,null,null,null,null,null,null,null,null,null,null,null,null,null,null,null,null,null,null,null,null,null,null,null,null,null,null,null,null,null,null,null,null,null,null,null,null,null,null,null,null,null,null,null,null,null,null,null,null,null,null,null,null,null,null,null,null,null,null,null,null,null,null,null,null,null,null,null,null,null,null,null,null,null,null,null,null,null,null,null,null,null,null,null,null,null,null,null,null,null,null,null,null,null,null,null,null,null,null,null,null,null,null,null,null,null,null,null,null,null,null,null,null,null,null,null,null,null,null,null,null,null,null,null,null,null,null,null,null,null,null,null,null,null,null,null,null,null,null,null,null,null,null,null,null,null,null,null,null,null,null,null,null,null,null,null,null,null,null,null,null,null,null,null,null,null,null,null,null,null,null,null,null,null,null,null,null,null,null,null,null,null,null,null,null,null,null,null,null,null,null,null,null,null,null,null,null,null,null,null,null,null,null,null,null,null,null,null,null,null,null,null,null,null,null,null,null,null,null,null,null,null,null,null,null,null,null,null,null,null,null,null,null,null,null,null,null,null,null,null,null,null,null,null,null,null,null,null,null,null,null,null,null,null,null,null,null,null,null,null,null,null,null,null,null,null,null,null,null,null,null,null,null,null,null,null,null,null,null,null,null,null,null,null,null,null,null,null,null,null,null,null,null,null,null,null,null,null,null,null,null,null,null,null,null,null,null,null,null,null,null,null,null,null,null,null,null,null,null,null,null,null,null,null,null,null,null,null,null,null,null,null,null,null,null,null,null,null,null,null,null,null,null,null,null,null,null,null,null,null,null,null,null,null,null,null,null,null,null,null,null,null,null,null,null,null,null,null,null,null,null,null,null,null,null,null,null,null,null,null,null,null,null,null,null,null,null,null,null,null,null,null,null,null,null,null,null,null,null,null,null,null,null,null,null,null,null,null,null,null,null,null,null,null,null,null,null,null,null,null,null,null,null,null,null,null,null,null,null,null,null,null,null,null,null,null,null,null,null,null,null,null,null,null,null,null,null,null,null,null,null,null,null,null,null,null,null,null,null,null,null,null,null,null,null,null,null,null,null,null,null,null,null,null,null,null,null,null,null,null,null,null,null,null,null,null,null,null,null,null,null,null,null,null,null,null,null,null,null,null,null,null,null,null,null,null,null,null,null,null,null,null,null,null,null,null,null,null,null,null,null,null,null,null,null,null,null,null,null,null,null,null,null,null,null,null,null,null,null,null,null,null,null,null,null,null,null,null,null,null,null,null,null,null,null,null,null,null,null,null,null,null,null,null,null,null,null,null,null,null,null,null,null,null,null,null,null,null,null,null,null,null,null,null,null,null,null,null,null,null,null,null,null,null,null,null,null,null,null,null,null,null,null,null,null,null,null,null,null,null,null,null,null,null,null,null,null,null,null,null,null,null,null,null,null,null,null,null,null,null,null,null,null,null,null,null,null,null,null,null,null,null,null,null,null,null,null,null,null,null,null,null,null,null,null,null,null,null,null,null,null,null,null,null,null,null,null,null,null,null,null,null,null,null,null,null,null,null,null,null,null,null,null,null,null,null,null,null,null,null,null,null,null,null,null,null,null,null,null,null,null,null,null,null,null,null,null,null,null,null,null,null,null,null,null,null,null,null,null,null,null,null,null,null,null,null,null,null,null,null,null,null,null,null,null,null,null,null,null,null,null,null,null,null,null,null,null,null,null,null,null,null,null,null,null,null,null,null,null,null,null,null,null,null,null,null,null,null,null,null,null,null,null,null,null,null,null,null,null,null,null,null,null,null,null,null,null,null,null,null,null,null,null,null,null,null,null,null,null,null,null,null,null,null,null,null,null,null,null,null,null,null,null,null,null,null,null,null,null,null,null,null,null,null,null,null,null,null,null,null,null,null,null,null,null,null,null,null,null,null,null,null,null,null,null,null,null,null,null,null,null,null,null,null,null,null,null,null,null,null,null,null,null,null,null,null,null,null,null,null,null,null,null,null,null,null,null,null,null,null,null,null,null,null,null,null,null,null,null,null,null,null,null,null,null,null,null,null,null,null,null,null,null,null,null,null,null,null,null,null,null,null,null,null,null,null,null,null,null,null,null,null,null,null,null,null,null,null,null,null,null,null,null,null,null,null,null,null,null,null,null,null,null,null,null,null,null,null,null,null,null,null,null,null,null,null,null,null,null,null,null,null,null,null,null,null,null,null,null,null,null,null,null,null,null,null,null,null,null,null,null,null,null,null,null,null,null,null,null,null,null,null,null,null,null,null,null,null,null,null,null,null,null,null,null,null,null,null,null,null,null,null,null,null,null,null,null,null,null,null,null,null,null,null,null,null,null,null,null,null,null,null,null,null,null,null,null,null,null,null,null,null,null,null,null,null,null,null,null,null,null,null,null,null,null,null,null,null,null,null,null,null,null,null,null,null,null,null,null,null,null,null,null,null,null,null,null,null,null,null,null,null,null,null,null,null,null,null,null,null,null,null,null,null,null,null,null,null,null,null,null,null,null,null,null,null,null,null,null,null,null,null,null,null,null,null,null,null,null,null,null,null,null,null,null,null,null,null,null,null,null,null,null,null,null,null,null,null,null,null,null,null,null,null,null,null,null,null,null,null,null,null,null,null,null,null,null,null,null,null,null,null,null,null,null,null,null,null,null,null,null,null,null,null,null,null,null,null,null,null,null,null,null,null,null,null,null,null,null,null,null,null,null,null,null,null,null,null,null,null,null,null,null,null,null,null,null,null,null,null,null,null,null,null,null,null,null,null,null,null,null,null,null,null,null,null,null,null,null,null,null,null,null,null,null,null,null,null,null,null,null,null,null,null,null,null,null,null,null,null,null,null,null,null,null,null,null,null,null,null,null,null,null,null,null,null,null,null,null,null,null,null,null,null,null,null,null,null,null,null,null,null,null,null,null,null,null,null,null,null,null,null,null,null,null,null,null,null,null,null,null,null,null,null,null,null,null,null,null,null,null,null,null,null,null,null,null,null,null,null,null,null,null,null,null,null,null,null,null,null,null,null,null,null,null,null,null,null,null,null,null,null,null,null,null,null,null,null,null,null,null,null,null,null,null,null,null,null,null,null,null,null,null,null,null,null,null,null,null,null,null,null,null,null,null,null,null,null,null,null,null,null,null,null,null,null,null,null,null,null,null,null,null,null,null,null,null,null,null,null,null,null,null,null,null,null,null,null,null,null,null,null,null,null,null,null,null,null,null,null,null,null,null,null,null,null,null,null,null,null,null,null,null,null,null,null,null,null,null,null,null,null,null,null,null,null,null,null,null,null,null,null,null,null,null,null,null,null,null,null,null,null,null,null,null,null,null,null,null,null,null,null,null,null,null,null,null,null,null,null,null,null,null,null,null,null,null,null,null,null,null,null,null,null,null,null,null,null,null,null,null,null,null,null,null,null,null,null,null,null,null,null,null,null,null,null,null,null,null,null,null,null,null,null,null,null,null,null,null,null,null,null,null,null,null,null,null,null,null,null,null,null,null,null,null,null,null,null,null,null,null,null,null,null,null,null,null,null,null,null,null,null,null,null,null,null,null,null,null,null,null,null,null,null,null,null,null,null,null,null,null,null,null,null,null,null,null,null,null,null,null,null,null,null,null,null,null,null,null,null,null,null,null,null,null,null,null,null,null,null,null,null,null,null,null,null,null,null,null,null,null,null,null,null,null,null,null,null,null,null,null,null,null,null,null,null,null,null,null,null,null,null,null,null,null,null,null,null,null,null,null,null,null,null,null,null,null,null,null,null,null,null,null,null,null,null,null,null,null,null,null,null,null,null,null,null,null,null,null,null,null,null,null,null,null,null,null,null,null,null,null,null,null,null,null,null,null,null,null,null,null,null,null,null,null,null,null,null,null,null,null,null,null,null,null,null,null,null,null,null,null,null,null,null,null,null,null,null,null,null,null,null,null,null,null,null,null,null,null,null,null,null,null,null,null,null,null,null,null,null,null,null,null,null,null,null,null,null,null,null,null,null,null,null,null,null,null,null,null,null,null,null,null,null,null,null,null,null,null,null,null,null,null,null,null,null,null,null,null,null,null,null,null,null,null,null,null,null,null,null,null,null,null,null,null,null,null,null,null,null,null,null,null,null,null,null,null,null,null,null,null,null,null,null,null,null,null,null,null,null,null,null,null,null,null,null,null,null,null,null,null,null,null,null,null,null,null,null,null,null,null,null,null,null,null,null,null,null,null,null,null,null,null,null,null,null,null,null,null,null,null,null,null,null,null,null,null,null,null,null,null,null,null,null,null,null,null,null,null,null,null,null,null,null,null,null,null,null,null,null,null,null,null,null,null,null,null,null,null,null,null,null,null,null,null,null,null,null,null,null,null,null,null,null,null,null,null,null,null,null,null,null,null,null,null,null,null,null,null,null,null,null,null,null,null,null,null,null,null,null,null,null,null,null,null,null,null,null,null,null,null,null,null,null,null,null,null,null,null,null,null,null,null,null,null,null,null,null,null,null,null,null,null,null,null,null,null,null,null,null,null,null,null,null,null,null,null,null,null,null,null,null,null,null,null,null,null,null,null,null,null,null,null,null,null,null,null,null,null,null,null,null,null,null,null,null,null,null,null,null,null,null,null,null,null,null,null,null,null,null,null,null,null,null,null,null,null,null,null,null,null,null,null,null,null,null,null,null,null,null,null,null,null,null,null,null,null,null,null,null,null,null,null,null,null,null,null,null,null,null,null,null,null,null,null,null,null,null,null,null,null,null,null,null,null,null,null,null,null,null,null,null,null,null,null,null,null,null,null,null,null,null,null,null,null,null,null,null,null,null,null,null,null,null,null,null,null,null,null,null,null,null,null,null,null,null,null,null,null,null,null,null,null,null,null,null,null,null,null,null,null,null,null,null,null,null,null,null,null,null,null,null,null,null,null,null,null,null,null,null,null,null,null,null,null,null,null,null,null,null,null,null,null,null,null,null,null,null,null,null,null,null,null,null,null,null,null,null,null,null,null,null,null,null,null,null,null,null,null,null,null,null,null,null,null,null,null,null,null,null,null,null,null,null,null,null,null,null,null,null,null,null,null,null,null,null,null,null,null,null,null,null,null,null,null,null,null,null,null,null,null,null,null,null,null,null,null,null,null,null,null,null,null,null,null,null,null,null,null,null,null,null,null,null,null,null,null,null,null,null,null,null,null,null,null,null,null,null,null,null,null,null,null,null,null,null,null,null,null,null,null,null,null,null,null,null,null,null,null,null,null,null,null,null,null,null,null,null,null,null,null,null,null,null,null,null,null,null,null,null,null,null,null,null,null,null,null,null,null,null,null,null,null,null,null,null,null,null,null,null,null,null,null,null,null,null,null,null,null,null,null,null,null,null,null,null,null,null,null,null,null,null,null,null,null,null,null,null,null,null,null,null,null,null,null,null,null,null,null,null,null,null,null,null,null,null,null,null,null,null,null,null,null,null,null,null,null,null,null,null,null,null,null,null,null,null,null,null,null,null,null,null,null,null,null,null,null,null,null,null,null,null,null,null,null,null,null,null,null,null,null,null,null,null,null,null,null,null,null,null,null,null,null,null,null,null,null,null,null,null,null,null,null,null,null,null,null,null,null,null,null,null,null,null,null,null,null,null,null,null,null,null,null,null,null,null,null,null,null,null,null,null,null,null,null,null,null,null,null,null,null,null,null,null,null,null,null,null,null,null,null,null,null,null,null,null,null,null,null,null,null,null,null,null,null,null,null,null,null,null,null,null,null,null,null,null,null,null,null,null,null,null,null,null,null,null,null,null,null,null,null,null,null,null,null,null,null,null,null,null,null,null,null,null,null,null,null,null,null,null,null,null,null,null,null,null,null,null,null,null,null,null,null,null,null,null,null,null,null,null,null,null,null,null,null,null,null,null,null,null,null,null,null,null,null,null,null,null,null,null,null,null,null,null,null,null,null,null,null,null,null,null,null,null,null,null,null,null,null,null,null,null,null,null,null,null,null,null,null,null,null,null,null,null,null,null,null,null,null,null,null,null,null,null,null,null,null,null,null,null,null,null,null,null,null,null,null,null,null,null,null,null,null,null,null,null,null,null,null,null,null,null,null,null,null,null,null,null,null,null,null,null,null,null,null,null,null,null,null,null,null,null,null,null,null,null,null,null,null,null,null,null,null,null,null,null,null,null,null,null,null,null,null,null,null,null,null,null,null,null,null,null,null,null,null,null,null,null,null,null,null,null,null,null,null,null,null,null,null,null,null,null,null,null,null,null,null,null,null,null,null,null,null,null,null,null,null,null,null,null,null,null,null,null,null,null,null,null,null,null,null,null,null,null,null,null,null,null,null,null,null,null,null,null,null,null,null,null,null,null,null,null,null,null,null,null,null,null,null,null,null,null,null,null,null,null,null,null,null,null,null,null,null,null,null,null,null,null,null,null,null,null,null,null,null,null,null,null,null,null,null,null,null,null,null,null,null,null,null,null,null,null,null,null,null,null,null,null,null,null,null,null,null,null,null,null,null,null,null,null,null,null,null,null,null,null,null,null,null,null,null,null,null,null,null,null,null,null,null,null,null,null,null,null,null,null,null,null,null,null,null,null,null,null,null,null,null,null,null,null,null,null,null,null,null,null,null,null,null,null,null,null,null,null,null,null,null,null,null,null,null,null,null,null,null,null,null,null,null,null,null,null,null,null,null,null,null,null,null,null,null,null,null,null,null,null,null,null,null,null,null,null,null,null,null,null,null,null,null,null,null,null,null,null,null,null,null,null,null,null,null,null,null,null,null,null,null,null,null,null,null,null,null,null,null,null,null,null,null,null,null,null,null,null,null,null,null,null,null,null,null,null,null,null,null,null,null,null,null,null,null,null,null,null,null,null,null,null,null,null,null,null,null,null,null,null,null,null,null,null,null,null,null,null,null,null,null,null,null,null,null,null,null,null,null,null,null,null,null,null,null,null,null,null,null,null,null,null,null,null,null,null,null,null,null,null,null,null,null,null,null,null,null,null,null,null,null,null,null,null,null,null,null,null,null,null,null,null,null,null,null,null,null,null,null,null,null,null,null,null,null,null,null,null,null,null,null,null,null,null,null,null,null,null,null,null,null,null,null,null,null,null,null,null,null,null,null,null,null,null,null,null,null,null,null,null,null,null,null,null,null,null,null,null,null,null,null,null,null,null,null,null,null,null,null,null,null,null,null,null,null,null,null,null,null,null,null,null,null,null,null,null,null,null,null,null,null,null,null,null,null,null,null,null,null,null,null,null,null,null,null,null,null,null,null,null,null,null,null,null,null,null,null,null,null,null,null,null,null,null,null,null,null,null,null,null,null,null,null,null,null,null,null,null,null,null,null,null,null,null,null,null,null,null,null,null,null,null,null,null,null,null,null,null,null,null,null,null,null,null,null,null,null,null,null,null,null,null,null,null,null,null,null,null,null,null,null,null,null,null,null,null,null,null,null,null,null,null,null,null,null,null,null,null,null,null,null,null,null,null,null,null,null,null,null,null,null,null,null,null,null,null,null,null,null,null,null,null,null,null,null,null,null,null,null,null,null,null,null,null,null,null,null,null,null,null,null,null,null,null,null,null,null,null,null,null,null,null,null,null,null,null,null,null,null,null,null,null,null,null,null,null,null,null,null,null,null,null,null,null,null,null,null,null,null,null,null,null,null,null,null,null,null,null,null,null,null,null,null,null,null,null,null,null,null,null,null,null,null,null,null,null,null,null,null,null,null,null,null,null,null,null,null,null,null,null,null,null,null,null,null,null,null,null,null,null,null,null,null,null,null,null,null,null,null,null,null,null,null,null,null,null,null,null,null,null,null,null,null,null,null,null,null,null,null,null,null,null,null,null,null,null,null,null,null,null,null,null,null,null,null,null,null,null,null,null,null,null,null,null,null,null,null,null,null,null,null,null,null,null,null,null,null,null,null,null,null,null,null,null,null,null,null,null,null,null,null,null,null,null,null,null,null,null,null,null,null,null,null,null,null,null,null,null,null,null,null,null,null,null,null,null,null,null,null,null,null,null,null,null,null,null,null,null,null,null,null,null,null,null,null,null,null,null,null,null,null,null,null,null,null,null,null,null,null,null,null,null,null,null,null,null,null,null,null,null,null,null,null,null,null,null,null,null,null,null,null,null,null,null,null,null,null,null,null,null,null,null,null,null,null,null,null,null,null,null,null,null,null,null,null,null,null,null,null,null,null,null,null,null,null,null,null,null,null,null,null,null,null,null,null,null,null,null,null,null,null,null,null,null,null,null,null,null,null,null,null,null,null,null,null,null,null,null,null,null,null,null,null,null,null,null,null,null,null,null,null,null,null,null,null,null,null,null,null,null,null,null,null,null,null,null,null,null,null,null,null,null,null,null,null,null,null,null,null,null,null,null,null,null,null,null,null,null,null,null,null,null,null,null,null,null,null,null,null,null,null,null,null,null,null,null,null,null,null,null,null,null,null,null,null,null,null,null,null,null,null,null,null,null,null,null,null,null,null,null,null,null,null,null,null,null,null,null,null,null,null,null,null,null,null,null,null,null,null,null,null,null,null,null,null,null,null,null,null,null,null,null,null,null,null,null,null,null,null,null,null,null,null,null,null,null,null,null,null,null,null,null,null,null,null,null,null,null,null,null,null,null,null,null,null,null,null,null,null,null,null,null,null,null,null,null,null,null,null,null,null,null,null,null,null,null,null,null,null,null,null,null,null,null,null,null,null,null,null,null,null,null,null,null,null,null,null,null,null,null,null,null,null,null,null,null,null,null,null,null,null,null,null,null,null,null,null,null,null,null,null,null,null,null,null,null,null,null,null,null,null,null,null,null,null,null,null,null,null,null,null,null,null,null,null,null,null,null,null,null,null,null,null,null,null,null,null,null,null,null,null,null,null,null,null,null,null,null,null,null,null,null,null,null,null,null,null,null,null,null,null,null,null,null,null,null,null,null,null,null,null,null,null,null,null,null,null,null,null,null,null,null,null,null,null,null,null,null,null,null,null,null,null,null,null,null,null,null,null,null,null,null,null,null,null,null,null,null,null,null,null,null,null,null,null,null,null,null,null,null,null,null,null,null,null,null,null,null,null,null,null,null,null,null,null,null,null,null,null,null,null,null,null,null,null,null,null,null,null,null,null,null,null,null,null,null,null,null,null,null,null,null,null,null,null,null,null,null,null,null,null,null,null,null,null,null,null,null,null,null,null,null,null,null,null,null,null,null,null,null,null,null,null,null,null,null,null,null,null,null,null,null,null,null,null,null,null,null,null,null,null,null,null,null,null,null,null,null,null,null,null,null,null,null,null,null,null,null,null,null,null,null,null,null,null,null,null,null,null,null,null,null,null,null,null,null,null,null,null,null,null,null,null,null,null,null,null,null,null,null,null,null,null,null,null,null,null,null,null,null,null,null,null,null,null,null,null,null,null,null,null,null,null,null,null,null,null,null,null,null,null,null,null,null,null,null,null,null,null,null,null,null,null,null,null,null,null,null,null,null,null,null,null,null,null,null,null,null,null,null,null,null,null,null,null,null,null,null,null,null,null,null,null,null,null,null,null,null,null,null,null,null,null,null,null,null,null,null,null,null,null,null,null,null,null,null,null,null,null,null,null,null,null,null,null,null,null,null,null,null,null,null,null,null,null,null,null,null,null,null,null,null,null,null,null,null,null,null,null,null,null,null,null,null,null,null,null,null,null,null,null,null,null,null,null,null,null,null,null,null,null,null,null,null,null,null,null,null,null,null,null,null,null,null,null,null,null,null,null,null,null,null,null,null,null,null,null,null,null,null,null,null,null,null,null,null,null,null,null,null,null,null,null,null,null,null,null,null,null,null,null,null,null,null,null,null,null,null,null,null,null,null,null,null,null,null,null,null,null,null,null,null,null,null,null,null,null,null,null,null,null,null,null,null,null,null,null,null,null,null,null,null,null,null,null,null,null,null,null,null,null,null,null,null,null,null,null,null,null,null,null,null,null,null,null,null,null,null,null,null,null,null,null,null,null,null,null,null,null,null,null,null,null,null,null,null,null,null,null,null,null,null,null,null,null,null,null,null,null,null,null,null,null,null,null,null,null,null,null,null,null,null,null,null,null,null,null,null,null,null,null,null,null,null,null,null,null,null,null,null,null,null,null,null,null,null,null,null,null,null,null,null,null,null,null,null,null,null,null,null,null,null,null,null,null,null,null,null,null,null,null,null,null,null,null,null,null,null,null,null,null,null,null,null,null,null,null,null,null,null,null,null,null,null,null,null,null,null,null,null,null,null,null,null,null,null,null,null,null,null,null,null,null,null,null,null,null,null,null,null,null,null,null,null,null,null,null,null,null,null,null,null,null,null,null,null,null,null,null,null,null,null,null,null,null,null,null,null,null,null,null,null,null,null,null,null,null,null,null,null,null,null,null,null,null,null,null,null,null,null,null,null,null,null,null,null,null,null,null,null,null,null,null,null,null,null,null,null,null,null,null,null,null,null,null,null,null,null,null,null,null,null,null,null,null,null,null,null,null,null,null,null,null,null,null,null,null,null,null,null,null,null,null,null,null,null,null,null,null,null,null,null,null,null,null,null,null,null,null,null,null,null,null,null,null,null,null,null,null,null,null,null,null,null,null,null,null,null,null,null,null,null,null,null,null,null,null,null,null,null,null,null,null,null,null,null,null,null,null,null,null,null,null,null,null,null,null,null,null,null,null,null,null,null,null,null,null,null,null,null,null,null,null,null,null,null,null,null,null,null,null,null,null,null,null,null,null,null,null,null,null,null,null,null,null,null,null,null,null,null,null,null,null,null,null,null,null,null,null,null,null,null,null,null,null,null,null,null,null,null,null,null,null,null,null,null,null,null,null,null,null,null,null,null,null,null,null,null,null,null,null,null,null,null,null,null,null,null,null,null,null,null,null,null,null,null,null,null,null,null,null,null,null,null,null,null,null,null,null,null,null,null,null,null,null,null,null,null,null,null,null,null,null,null,null,null,null,null,null,null,null,null,null,null,null,null,null,null,null,null,null,null,null,null,null,null,null,null,null,null,null,null,null,null,null,null,null,null,null,null,null,null,null,null,null,null,null,null,null,null,null,null,null,null,null,null,null,null,null,null,null,null,null,null,null,null,null,null,null,null,null,null,null,null,null,null,null,null,null,null,null,null,null,null,null,null,null,null,null,null,null,null,null,null,null,null,null,null,null,null,null,null,null,null,null,null,null,null,null,null,null,null,null,null,null,null,null,null,null,null,null,null,null,null,null,null,null,null,null,null,null,null,null,null,null,null,null,null,null,null,null,null,null,null,null,null,null,null,null,null,null,null,null,null,null,null,null,null,null,null,null,null,null,null,null,null,null,null,null,null,null,null,null,null,null,null,null,null,null,null,null,null,null,null,null,null,null,null,null,null,null,null,null,null,null,null,null,null,null,null,null,null,null,null,null,null,null,null,null,null,null,null,null,null,null,null,null,null,null,null,null,null,null,null,null,null,null,null,null,null,null,null,null,null,null,null,null,null,null,null,null,null,null,null,null,null,null,null,null,null,null,null,null,null,null,null,null,null,null,null,null,null,null,null,null,null,null,null,null,null,null,null,null,null,null,null,null,null,null,null,null,null,null,null,null,null,null,null,null,null,null,null,null,null,null,null,null,null,null,null,null,null,null,null,null,null,null,null,null,null,null,null,null,null,null,null,null,null,null,null,null,null,null,null,null,null,null,null,null,null,null,null,null,null,null,null,null,null,null,null,null,null,null,null,null,null,null,null,null,null,null,null,null,null,null,null,null,null,null,null,null,null,null,null,null,null,null,null,null,null,null,null,null,null,null,null,null,null,null,null,null,null,null,null,null,null,null,null,null,null,null,null,null,null,null,null,null,null,null,null,null,null,null,null,null,null,null,null,null,null,null,null,null,null,null,null,null,null,null,null,null,null,null,null,null,null,null,null,null,null,null,null,null,null,null,null,null,null,null,null,null,null,null,null,null,null,null,null,null,null,null,null,null,null,null,null,null,null,null,null,null,null,null,null,null,null,null,null,null,null,null,null,null,null,null,null,null,null,null,null,null,null,null,null,null,null,null,null,null,null,null,null,null,null,null,null,null,null,null,null,null,null,null,null,null,null,null,null,null,null,null,null,null,null,null,null,null,null,null,null,null,null,null,null,null,null,null,null,null,null,null,null,null,null,null,null,null,null,null,null,null,null,null,null,null,null,null,null,null,null,null,null,null,null,null,null,null,null,null,null,null,null,null,null,null,null,null,null,null,null,null,null,null,null,null,null,null,null,null,null,null,null,null,null,null,null,null,null,null,null,null,null,null,null,null,null,null,null,null,null,null,null,null,null,null,null,null,null,null,null,null,null,null,null,null,null,null,null,null,null,null,null,null,null,null,null,null,null,null,null,null,null,null,null,null,null,null,null,null,null,null,null,null,null,null,null,null,null,null,null,null,null,null,null,null,null,null,null,null,null,null,null,null,null,null,null,null,null,null,null,null,null,null,null,null,null,null,null,null,null,null,null,null,null,null,null,null,null,null,null,null,null,null,null,null,null,null,null,null,null,null,null,null,null,null,null,null,null,null,null,null,null,null,null,null,null,null,null,null,null,null,null,null,null,null,null,null,null,null,null,null,null,null,null,null,null,null,null,null,null,null,null,null,null,null,null,null,null,null,null,null,null,null,null,null,null,null,null,null,null,null,null,null,null,null,null,null,null,null,null,null,null,null,null,null,null,null,null,null,null,null,null,null,null,null,null,null,null,null,null,null,null,null,null,null,null,null,null,null,null,null,null,null,null,null,null,null,null,null,null,null,null,null,null,null,null,null,null,null,null,null,null,null,null,null,null,null,null,null,null,null,null,null,null,null,null,null,null,null,null,null,null,null,null,null,null,null,null,null,null,null,null,null,null,null,null,null,null,null,null,null,null,null,null,null,null,null,null,null,null,null,null,null,null,null,null,null,null,null,null,null,null,null,null,null,null,null,null,null,null,null,null,null,null,null,null,null,null,null,null,null,null,null,null,null,null,null,null,null,null,null,null,null,null,null,null,null,null,null,null,null,null,null,null,null,null,null,null,null,null,null,null,null,null,null,null,null,null,null,null,null,null,null,null,null,null,null,null,null,null,null,null,null,null,null,null,null,null,null,null,null,null,null,null,null,null,null,null,null,null,null,null,null,null,null,null,null,null,null,null,null,null,null,null,null,null,null,null,null,null,null,null,null,null,null,null,null,null,null,null,null,null,null,null,null,null,null,null,null,null,null,null,null,null,null,null,null,null,null,null,null,null,null,null,null,null,null,null,null,null,null,null,null,null,null,null,null,null,null,null,null,null,null,null,null,null,null,null,null,null,null,null,null,null,null,null,null,null,null,null,null,null,null,null,null,null,null,null,null,null,null,null,null,null,null,null,null,null,null,null,null,null,null,null,null,null,null,null,null,null,null,null,null,null,null,null,null,null,null,null,null,null,null,null,null,null,null,null,null,null,null,null,null,null,null,null,null,null,null,null,null,null,null,null,null,null,null,null,null,null,null,null,null,null,null,null,null,null,null,null,null,null,null,null,null,null,null,null,null,null,null,null,null,null,null,null,null,null,null,null,null,null,null,null,null,null,null,null,null,null,null,null,null,null,null,null,null,null,null,null,null,null,null,null,null,null,null,null,null,null,null,null,null,null,null,null,null,null,null,null,null,null,null,null,null,null,null,null,null,null,null,null,null,null,null,null,null,null,null,null,null,null,null,null,null,null,null,null,null,null,null,null,null,null,null,null,null,null,null,null,null,null,null,null,null,null,null,null,null,null,null,null,null,null,null,null,null,null,null,null,null,null,null,null,null,null,null,null,null,null,null,null,null,null,null,null,null,null,null,null,null,null,null,null,null,null,null,null,null,null,null,null,null,null,null,null,null,null,null,null,null,null,null,null,null,null,null,null,null,null,null,null,null,null,null,null,null,null,null,null,null,null,null,null,null,null,null,null,null,null,null,null,null,null,null,null,null,null,null,null,null,null,null,null,null,null,null,null,null,null,null,null,null,null,null,null,null,null,null,null,null,null,null,null,null,null,null,null,null,null,null,null,null,null,null,null,null,null,null,null,null,null,null,null,null,null,null,null,null,null,null,null,null,null,null,null,null,null,null,null,null,null,null,null,null,null,null,null,null,null,null,null,null,null,null,null,null,null,null,null,null,null,null,null,null,null,null,null,null,null,null,null,null,null,null,null,null,null,null,null,null,null,null,null,null,null,null,null,null,null,null,null,null,null,null,null,null,null,null,null,null,null,null,null,null,null,null,null,null,null,null,null,null,null,null,null,null,null,null,null,null,null,null,null,null,null,null,null,null,null,null,null,null,null,null,null,null,null,null,null,null,null,null,null,null,null,null,null,null,null,null,null,null,null,null,null,null,null,null,null,null,null,null,null,null,null,null,null,null,null,null,null,null,null,null,null,null,null,null,null,null,null,null,null,null,null,null,null,null,null,null,null,null,null,null,null,null,null,null,null,null,null,null,null,null,null,null,null,null,null,null,null,null,null,null,null,null,null,null,null,null,null,null,null,null,null,null,null,null,null,null,null,null,null,null,null,null,null,null,null,null,null,null,null,null,null,null,null,null,null,null,null,null,null,null,null,null,null,null,null,null,null,null,null,null,null,null,null,null,null,null,null,null,null,null,null,null,null,null,null,null,null,null,null,null,null,null,null,null,null,null,null,null,null,null,null,null,null,null,null,null,null,null,null,null,null,null,null,null,null,null,null,null,null,null,null,null,null,null,null,null,null,null,null,null,null,null,null,null,null,null,null,null,null,null,null,null,null,null,null,null,null,null,null,null,null,null,null,null,null,null,null,null,null,null,null,null,null,null,null,null,null,null,null,null,null,null,null,null,null,null,null,null,null,null,null,null,null,null,null,null,null,null,null,null,null,null,null,null,null,null,null,null,null,null,null,null,null,null,null,null,null,null,null,null,null,null,null,null,null,null,null,null,null,null,null,null,null,null,null,null,null,null,null,null,null,null,null,null,null,null,null,null,null,null,null,null,null,null,null,null,null,null,null,null,null,null,null,null,null,null,null,null,null,null,null,null,null,null,null,null,null,null,null,null,null,null,null,null,null,null,null,null,null,null,null,null,null,null,null,null,null,null,null,null,null,null,null,null,null,null,null,null,null,null,null,null,null,null,null,null,null,null,null,null,null,null,null,null,null,null,null,null,null,null,null,null,null,null,null,null,null,null,null,null,null,null,null,null,null,null,null,null,null,null,null,null,null,null,null,null,null,null,null,null,null,null,null,null,null,null,null,null,null,null,null,null,null,null,null,null,null,null,null,null,null,null,null,null,null,null,null,null,null,null,null,null,null,null,null,null,null,null,null,null,null,null,null,null,null,null,null,null,null,null,null,null,null,null,null,null,null,null,null,null,null,null,null,null,null,null,null,null,null,null,null,null,null,null,null,null,null,null,null,null,null,null,null,null,null,null,null,null,null,null,null,null,null,null,null,null,null,null,null,null,null,null,null,null,null,null,null,null,null,null,null,null,null,null,null,null,null,null,null,null,null,null,null,null,null,null,null,null,null,null,null,null,null,null,null,null,null,null,null,null,null,null,null,null,null,null,null,null,null,null,null,null,null,null,null,null,null,null,null,null,null,null,null,null,null,null,null,null,null,null,null,null,null,null,null,null,null,null,null,null,null,null,null,null,null,null,null,null,null,null,null,null,null,null,null,null,null,null,null,null,null,null,null,null,null,null,null,null,null,null,null,null,null,null,null,null,null,null,null,null,null,null,null,null,null,null,null,null,null,null,null,null,null,null,null,null,null,null,null,null,null,null,null,null,null,null,null,null,null,null,null,null,null,null,null,null,null,null,null,null,null,null,null,null,null,null,null,null,null,null,null,null,null,null,null,null,null,null,null,null,null,null,null,null,null,null,null,null,null,null,null,null,null,null,null,null,null,null,null,null,null,null,null,null,null,null,null,null,null,null,null,null,null,null,null,null,null,null,null,null,null,null,null,null,null,null,null,null,null,null,null,null,null,null,null,null,null,null,null,null,null,null,null,null,null,null,null,null,null,null,null,null,null,null,null,null,null,null,null,null,null,null,null,null,null,null,null,null,null,null,null,null,null,null,null,null,null,null,null,null,null,null,null,null,null,null,null,null,null,null,null,null,null,null,null,null,null,null,null,null,null,null,null,null,null,null,null,null,null,null,null,null,null,null,null,null,null,null,null,null,null,null,null,null,null,null,null,null,null,null,null,null,null,null,null,null,null,null,null,null,null,null,null,null,null,null,null,null,null,null,null,null,null,null,null,null,null,null,null,null,null,null,null,null,null,null,null,null,null,null,null,null,null,null,null,null,null,null,null,null,null,null,null,null,null,null,null,null,null,null,null,null,null,null,null,null,null,null,null,null,null,null,null,null,null,null,null,null,null,null,null,null,null,null,null,null,null,null,null,null,null,null,null,null,null,null,null,null,null,null,null,null,null,null,null,null,null,null,null,null,null,null,null,null,null,null,null,null,null,null,null,null,null,null,null,null,null,null,null,null,null,null,null,null,null,null,null,null,null,null,null,null,null,null,null,null,null,null,null,null,null,null,null,null,null,null,null,null,null,null,null,null,null,null,null,null,null,null,null,null,null,null,null,null,null,null,null,null,null,null,null,null,null,null,null,null,null,null,null,null,null,null,null,null,null,null,null,null,null,null,null,null,null,null,null,null,null,null,null,null,null,null,null,null,null,null,null,null,null,null,null,null,null,null,null,null,null,null,null,null,null,null,null,null,null,null,null,null,null,null,null,null,null,null,null,null,null,null,null,null,null,null,null,null,null,null,null,null,null,null,null,null,null,null,null,null,null,null,null,null,null,null,null,null,null,null,null,null,null,null,null,null,null,null,null,null,null,null,null,null,null,null,null,null,null,null,null,null,null,null,null,null,null,null,null,null,null,null,null,null,null,null,null,null,null,null,null,null,null,null,null,null,null,null,null,null,null,null,null,null,null,null,null,null,null,null,null,null,null,null,null,null,null,null,null,null,null,null,null,null,null,null,null,null,null,null,null,null,null,null,null,null,null,null,null,null,null,null,null,null,null,null,null,null,null,null,null,null,null,null,null,null,null,null,null,null,null,null,null,null,null,null,null,null,null,null,null,null,null,null,null,null,null,null,null,null,null,null,null,null,null,null,null,null,null,null,null,null,null,null,null,null,null,null,null,null,null,null,null,null,null,null,null,null,null,null,null,null,null,null,null,null,null,null,null,null,null,null,null,null,null,null,null,null,null,null,null,null,null,null,null,null,null,null,null,null,null,null,null,null,null,null,null,null,null,null,null,null,null,null,null,null,null,null,null,null,null,null,null,null,null,null,null,null,null,null,null,null,null,null,null,null,null,null,null,null,null,null,null,null,null,null,null,null,null,null,null,null,null,null,null,null,null,null,null,null,null,null,null,null,null,null,null,null,null,null,null,null,null,null,null,null,null,null,null,null,null,null,null,null,null,null,null,null,null,null,null,null,null,null,null,null,null,null,null,null,null,null,null,null,null,null,null,null,null,null,null,null,null,null,null,null,null,null,null,null,null,null,null,null,null,null,null,null,null,null,null,null,null,null,null,null,null,null,null,null,null,null,null,null,null,null,null,null,null,null,null,null,null,null,null,null,null,null,null,null,null,null,null,null,null,null,null,null,null,null,null,null,null,null,null,null,null,null,null,null,null,null,null,null,null,null,null,null,null,null,null,null,null,null,null,null,null,null,null,null,null,null,null,null,null,null,null,null,null,null,null,null,null,null,null,null,null,null,null,null,null,null,null,null,null,null,null,null,null,null,null,null,null,null,null,null,null,null,null,null,null,null,null,null,null,null,null,null,null,null,null,null,null,null,null,null,null,null,null,null,null,null,null,null,null,null,null,null,null,null,null,null,null,null,null,null,null,null,null,null,null,null,null,null,null,null,null,null,null,null,null,null,null,null,null,null,null,null,null,null,null,null,null,null,null,null,null,null,null,null,null,null,null,null,null,null,null,null,null,null,null,null,null,null,null,null,null,null,null,null,null,null,null,null,null,null,null,null,null,null,null,null,null,null,null,null,null,null,null,null,null,null,null,null,null,null,null,null,null,null,null,null,null,null,null,null,null,null,null,null,null,null,null,null,null,null,null,null,null,null,null,null,null,null,null,null,null,null,null,null,null,null,null,null,null,null,null,null,null,null,null,null,null,null,null,null,null,null,null,null,null,null,null,null,null,null,null,null,null,null,null,null,null,null,null,null,null,null,null,null,null,null,null,null,null,null,null,null,null,null,null,null,null,null,null,null,null,null,null,null,null,null,null,null,null,null,null,null,null,null,null,null,null,null,null,null,null,null,null,null,null,null,null,null,null,null,null,null,null,null,null,null,null,null,null,null,null,null,null,null,null,null,null,null,null,null,null,null,null,null,null,null,null,null,null,null,null,null,null,null,null,null,null,null,null,null,null,null,null,null,null,null,null,null,null,null,null,null,null,null,null,null,null,null,null,null,null,null,null,null,null,null,null,null,null,null,null,null,null,null,null,null,null,null,null,null,null,null,null,null,null,null,null,null,null,null,null,null,null,null,null,null,null,null,null,null,null,null,null,null,null,null,null,null,null,null,null,null,null,null,null,null,null,null,null,null,null,null,null,null,null,null,null,null,null,null,null,null,null,null,null,null,null,null,null,null,null,null,null,null,null,null,null,null,null,null,null,null,null,null,null,null,null,null,null,null,null,null,null,null,null,null,null,null,null,null,null,null,null,null,null,null,null,null,null,null,null,null,null,null,null,null,null,null,null,null,null,null,null,null,null,null,null,null,null,null,null,null,null,null,null,null,null,null,null,null,null,null,null,null,null,null,null,null,null,null,null,null,null,null,null,null,null,null,null,null,null,null,null,null,null,null,null,null,null,null,null,null,null,null,null,null,null,null,null,null,null,null,null,null,null,null,null,null,null,null,null,null,null,null,null,null,null,null,null,null,null,null,null,null,null,null,null,null,null,null,null,null,null,null,null,null,null,null,null,null,null,null,null,null,null,null,null,null,null,null,null,null,null,null,null,null,null,null,null,null,null,null,null,null,null,null,null,null,null,null,null,null,null,null,null,null,null,null,null,null,null,null,null,null,null,null,null,null,null,null,null,null,null,null,null,null,null,null,null,null,null,null,null,null,null,null,null,null,null,null,null,null,null,null,null,null,null,null,null,null,null,null,null,null,null,null,null,null,null,null,null,null,null,null,null,null,null,null,null,null,null,null,null,null,null,null,null,null,null,null,null,null,null,null,null,null,null,null,null,null,null,null,null,null,null,null,null,null,null,null,null,null,null,null,null,null,null,null,null,null,null,null,null,null,null,null,null,null,null,null,null,null,null,null,null,null,null,null,null,null,null,null,null,null,null,null,null,null,null,null,null,null,null,null,null,null,null,null,null,null,null,null,null,null,null,null,null,null,null,null,null,null,null,null,null,null,null,null,null,null,null,null,null,null,null,null,null,null,null,null,null,null,null,null,null,null,null,null,null,null,null,null,null,null,null,null,null,null,null,null,null,null,null,null,null,null,null,null,null,null,null,null,null,null,null,null,null,null,null,null,null,null,null,null,null,null,null,null,null,null,null,null,null,null,null,null,null,null,null,null,null,null,null,null,null,null,null,null,null,null,null,null,null,null,null,null,null,null,null,null,null,null,null,null,null,null,null,null,null,null,null,null,null,null,null,null,null,null,null,null,null,null,null,null,null,null,null,null,null,null,null,null,null,null,null,null,null,null,null,null,null,null,null,null,null,null,null,null,null,null,null,null,null,null,null,null,null,null,null,null,null,null,null,null,null,null,null,null,null,null,null,null,null,null,null,null,null,null,null,null,null,null,null,null,null,null,null,null,null,null,null,null,null,null,null,null,null,null,null,null,null,null,null,null,null,null,null,null,null,null,null,null,null,null,null,null,null,null,null,null,null,null,null,null,null,null,null,null,null,null,null,null,null,null,null,null,null,null,null,null,null,null,null,null,null,null,null,null,null,null,null,null,null,null,null,null,null,null,null,null,null,null,null,null,null,null,null,null,null,null,null,null,null,null,null,null,null,null,null,null,null,null,null,null,null,null,null,null,null,null,null,null,null,null,null,null,null,null,null,null,null,null,null,null,null,null,null,null,null,null,null,null,null,null,null,null,null,null,null,null,null,null,null,null,null,null,null,null,null,null,null,null,null,null,null,null,null,null,null,null,null,null,null,null,null,null,null,null,null,null,null,null,null,null,null,null,null,null,null,null,null,null,null,null,null,null,null,null,null,null,null,null,null,null,null,null,null,null,null,null,null,null,null,null,null,null,null,null,null,null,null,null,null,null,null,null,null,null,null,null,null,null,null,null,null,null,null,null,null,null,null,null,null,null,null,null,null,null,null,null,null,null,null,null,null,null,null,null,null,null,null,null,null,null,null,null,null,null,null,null,null,null,null,null,null,null,null,null,null,null,null,null,null,null,null,null,null,null,null,null,null,null,null,null,null,null,null,null,null,null,null,null,null,null,null,null,null,null,null,null,null,null,null,null,null,null,null,null,null,null,null,null,null,null,null,null,null,null,null,null,null,null,null,null,null,null,null,null,null,null,null,null,null,null,null,null,null,null,null,null,null,null,null,null,null,null,null,null,null,null,null,null,null,null,null,null,null,null,null,null,null,null,null,null,null,null,null,null,null,null,null,null,null,null,null,null,null,null,null,null,null,null,null,null,null,null,null,null,null,null,null,null,null,null,null,null,null,null,null,null,null,null,null,null,null,null,null,null,null,null,null,null,null,null,null,null,null,null,null,null,null,null,null,null,null,null,null,null,null,null,null,null,null,null,null,null,null,null,null,null,null,null,null,null,null,null,null,null,null,null,null,null,null,null,null,null,null,null,null,null,null,null,null,null,null,null,null,null,null,null,null,null,null,null,null,null,null,null,null,null,null,null,null,null,null,null,null,null,null,null,null,null,null,null,null,null,null,null,null,null,null,null,null,null,null,null,null,null,null,null,null,null,null,null,null,null,null,null,null,null,null,null,null,null,null,null,null,null,null,null,null,null,null,null,null,null,null,null,null,null,null,null,null,null,null,null,null,null,null,null,null,null,null,null,null,null,null,null,null,null,null,null,null,null,null,null,null,null,null,null,null,null,null,null,null,null,null,null,null,null,null,null,null,null,null,null,null,null,null,null,null,null,null,null,null,null,null,null,null,null,null,null,null,null,null,null,null,null,null,null,null,null,null,null,null,null,null,null,null,null,null,null,null,null,null,null,null,null,null,null,null,null,null,null,null,null,null,null,null,null,null,null,null,null,null,null,null,null,null,null,null,null,null,null,null,null,null,null,null,null,null,null,null,null,null,null,null,null,null,null,null,null,null,null,null,null,null,null,null,null,null,null,null,null,null,null,null,null,null,null,null,null,null,null,null,null,null,null,null,null,null,null,null,null,null,null,null,null,null,null,null,null,null,null,null,null,null,null,null,null,null,null,null,null,null,null,null,null,null,null,null,null,null,null,null,null,null,null,null,null,null,null,null,null,null,null,null,null,null,null,null,null,null,null,null,null,null,null,null,null,null,null,null,null,null,null,null,null,null,null,null,null,null,null,null,null,null,null,null,null,null,null,null,null,null,null,null,null,null,null,null,null,null,null,null,null,null,null,null,null,null,null,null,null,null,null,null,null,null,null,null,null,null,null,null,null,null,null,null,null,null,null,null,null,null,null,null,null,null,null,null,null,null,null,null,null,null,null,null,null,null,null,null,null,null,null,null,null,null,null,null,null,null,null,null,null,null,null,null,null,null,null,null,null,null,null,null,null,null,null,null,null,null,null,null,null,null,null,null,null,null,null,null,null,null,null,null,null,null,null,null,null,null,null,null,null,null,null,null,null,null,null,null,null,null,null,null,null,null,null,null,null,null,null,null,null,null,null,null,null,null,null,null,null,null,null,null,null,null,null,null,null,null,null,null,null,null,null,null,null,null,null,null,null,null,null,null,null,null,null,null,null,null,null,null,null,null,null,null,null,null,null,null,null,null,null,null,null,null,null,null,null,null,null,null,null,null,null,null,null,null,null,null,null,null,null,null,null,null,null,null,null,null,null,null,null,null,null,null,null,null,null,null,null,null,null,null,null,null,null,null,null,null,null,null,null,null,null,null,null,null,null,null,null,null,null,null,null,null,null,null,null,null,null,null,null,null,null,null,null,null,null,null,null,null,null,null,null,null,null,null,null,null,null,null,null,null,null,null,null,null,null,null,null,null,null,null,null,null,null,null,null,null,null,null,null,null,null,null,null,null,null,null,null,null,null,null,null,null,null,null,null,null,null,null,null,null,null,null,null,null,null,null,null,null,null,null,null,null,null,null,null,null,null,null,null,null,null,null,null,null,null,null,null,null,null,null,null,null,null,null,null,null,null,null,null,null,null,null,null,null,null,null,null,null,null,null,null,null,null,null,null,null,null,null,null,null,null,null,null,null,null,null,null,null,null,null,null,null,null,null,null,null,null,null,null,null,null,null,null,null,null,null,null,null,null,null,null,null,null,null,null,null,null,null,null,null,null,null,null,null,null,null,null,null,null,null,null,null,null,null,null,null,null,null,null,null,null,null,null,null,null,null,null,null,null,null,null,null,null,null,null,null,null,null,null,null,null,null,null,null,null,null,null,null,null,null,null,null,null,null,null,null,null,null,null,null,null,null,null,null,null,null,null,null,null,null,null,null,null,null,null,null,null,null,null,null,null,null,null,null,null,null,null,null,null,null,null,null,null,null,null,null,null,null,null,null,null,null,null,null,null,null,null,null,null,null,null,null,null,null,null,null,null,null,null,null,null,null,null,null,null,null,null,null,null,null,null,null,null,null,null,null,null,null,null,null,null,null,null,null,null,null,null,null,null,null,null,null,null,null,null,null,null,null,null,null,null,null,null,null,null,null,null,null,null,null,null,null,null,null,null,null,null,null,null,null,null,null,null,null,null,null,null,null,null,null,null,null,null,null,null,null,null,null,null,null,null,null,null,null,null,null,null,null,null,null,null,null,null,null,null,null,null,null,null,null,null,null,null,null,null,null,null,null,null,null,null,null,null,null,null,null,null,null,null,null,null,null,null,null,null,null,null,null,null,null,null,null,null,null,null,null,null,null,null,null,null,null,null,null,null,null,null,null,null,null,null,null,null,null,null,null,null,null,null,null,null,null,null,null,null,null,null,null,null,null,null,null,null,null,null,null,null,null,null,null,null,null,null,null,null,null,null,null,null,null,null,null,null,null,null,null,null,null,null,null,null,null,null,null,null,null,null,null,null,null,null,null,null,null,null,null,null,null,null,null,null,null,null,null,null,null,null,null,null,null,null,null,null,null,null,null,null,null,null,null,null,null,null,null,null,null,null,null,null,null,null,null,null,null,null,null,null,null,null,null,null,null,null,null,null,null,null,null,null,null,null,null,null,null,null,null,null,null,null,null,null,null,null,null,null,null,null,null,null,null,null,null,null,null,null,null,null,null,null,null,null,null,null,null,null,null,null,null,null,null,null,null,null,null,null,null,null,null,null,null,null,null,null,null,null,null,null,null,null,null,null,null,null,null,null,null,null,null,null,null,null,null,null,null,null,null,null,null,null,null,null,null,null,null,null,null,null,null,null,null,null,null,null,null,null,null,null,null,null,null,null,null,null,null,null,null,null,null,null,null,null,null,null,null,null,null,null,null,null,null,null,null,null,null,null,null,null,null,null,null,null,null,null,null,null,null,null,null,null,null,null,null,null,null,null,null,null,null,null,null,null,null,null,null,null,null,null,null,null,null,null,null,null,null,null,null,null,null,null,null,null,null,null,null,null,null,null,null,null,null,null,null,null,null,null,null,null,null,null,null,null,null,null,null,null,null,null,null,null,null,null,null,null,null,null,null,null,null,null,null,null,null,null,null,null,null,null,null,null,null,null,null,null,null,null,null,null,null,null,null,null,null,null,null,null,null,null,null,null,null,null,null,null,null,null,null,null,null,null,null,null,null,null,null,null,null,null,null,null,null,null,null,null,null,null,null,null,null,null,null,null,null,null,null,null,null,null,null,null,null,null,null,null,null,null,null,null,null,null,null,null,null,null,null,null,null,null,null,null,null,null,null,null,null,null,null,null,null,null,null,null,null,null,null,null,null,null,null,null,null,null,null,null,null,null,null,null,null,null,null,null,null,null,null,null,null,null,null,null,null,null,null,null,null,null,null,null,null,null,null,null,null,null,null,null,null,null,null,null,null,null,null,null,null,null,null,null,null,null,null,null,null,null,null,null,null,null,null,null,null,null,null,null,null,null,null,null,null,null,null,null,null,null,null,null,null,null,null,null,null,null,null,null,null,null,null,null,null,null,null,null,null,null,null,null,null,null,null,null,null,null,null,null,null,null,null,null,null,null,null,null,null,null,null,null,null,null,null,null,null,null,null,null,null,null,null,null,null,null,null,null,null,null,null,null,null,null,null,null,null,null,null,null,null,null,null,null,null,null,null,null,null,null,null,null,null,null,null,null,null,null,null,null,null,null,null,null,null,null,null,null,null,null,null,null,null,null,null,null,null,null,null,null,null,null,null,null,null,null,null,null,null,null,null,null,null,null,null,null,null,null,null,null,null,null,null,null,null,null,null,null,null,null,null,null,null,null,null,null,null,null,null,null,null,null,null,null,null,null,null,null,null,null,null,null,null,null,null,null,null,null,null,null,null,null,null,null,null,null,null,null,null,null,null,null,null,null,null,null,null,null,null,null,null,null,null,null,null,null,null,null,null,null,null,null,null,null,null,null,null,null,null,null,null,null,null,null,null,null,null,null,null,null,null,null,null,null,null,null,null,null,null,null,null,null,null,null,null,null,null,null,null,null,null,null,null,null,null,null,null,null,null,null,null,null,null,null,null,null,null,null,null,null,null,null,null,null,null,null,null,null,null,null,null,null,null,null,null,null,null,null,null,null,null,null,null,null,null,null,null,null,null,null,null,null,null,null,null,null,null,null,null,null,null,null,null,null,null,null,null,null,null,null,null,null,null,null,null,null,null,null,null,null,null,null,null,null,null,null,null,null,null,null,null,null,null,null,null,null,null,null,null,null,null,null,null,null,null,null,null,null,null,null,null,null,null,null,null,null,null,null,null,null,null,null,null,null,null,null,null,null,null,null,null,null,null,null,null,null,null,null,null,null,null,null,null,null,null,null,null,null,null,null,null,null,null,null,null,null,null,null,null,null,null,null,null,null,null,null,null,null,null,null,null,null,null,null,null,null,null,null,null,null,null,null,null,null,null,null,null,null,null,null,null,null,null,null,null,null,null,null,null,null,null,null,null,null,null,null,null,null,null,null,null,null,null,null,null,null,null,null,null,null,null,null,null,null,null,null,null,null,null,null,null,null,null,null,null,null,null,null,null,null,null,null,null,null,null,null,null,null,null,null,null,null,null,null,null,null,null,null,null,null,null,null,null,null,null,null,null,null,null,null,null,null,null,null,null,null,null,null,null,null,null,null,null,null,null,null,null,null,null,null,null,null,null,null,null,null,null,null,null,null,null,null,null,null,null,null,null,null,null,null,null,null,null,null,null,null,null,null,null,null,null,null,null,null,null,null,null,null,null,null,null,null,null,null,null,null,null,null,null,null,null,null,null,null,null,null,null,null,null,null,null,null,null,null,null,null,null,null,null,null,null,null,null,null,null,null,null,null,null,null,null,null,null,null,null,null,null,null,null,null,null,null,null,null,null,null,null,null,null,null,null,null,null,null,null,null,null,null,null,null,null,null,null,null,null,null,null,null,null,null,null,null,null,null,null,null,null,null,null,null,null,null,null,null,null,null,null,null,null,null,null,null,null,null,null,null,null,null,null,null,null,null,null,null,null,null,null,null,null,null,null,null,null,null,null,null,null,null,null,null,null,null,null,null,null,null,null,null,null,null,null,null,null,null,null,null,null,null,null,null,null,null,null,null,null,null,null,null,null,null,null,null,null,null,null,null,null,null,null,null,null,null,null,null,null,null,null,null,null,null,null,null,null,null,null,null,null,null,null,null,null,null,null,null,null,null,null,null,null,null,null,null,null,null,null,null,null,null,null,null,null,null,null,null,null,null,null,null,null,null,null,null,null,null,null,null,null,null,null,null,null,null,null,null,null,null,null,null,null,null,null,null,null,null,null,null,null,null,null,null,null,null,null,null,null,null,null,null,null,null,null,null,null,null,null,null,null,null,null,null,null,null,null,null,null,null,null,null,null,null,null,null,null,null,null,null,null,null,null,null,null,null,null,null,null,null,null,null,null,null,null,null,null,null,null,null,null,null,null,null,null,null,null,null,null,null,null,null,null,null,null,null,null,null,null,null,null,null,null,null,null,null,null,null,null,null,null,null,null,null,null,null,null,null,null,null,null,null,null,null,null,null,null,null,null,null,null,null,null,null,null,null,null,null,null,null,null,null,null,null,null,null,null,null,null,null,null,null,null,null,null,null,null,null,null,null,null,null,null,null,null,null,null,null,null,null,null,null,null,null,null,null,null,null,null,null,null,null,null,null,null,null,null,null,null,null,null,null,null,null,null,null,null,null,null,null,null,null,null,null,null,null,null,null,null,null,null,null,null,null,null,null,null,null,null,null,null,null,null,null,null,null,null,null,null,null,null,null,null,null,null,null,null,null,null,null,null,null,null,null,null,null,null,null,null,null,null,null,null,null,null,null,null,null,null,null,null,null,null,null,null,null,null,null,null,null,null,null,null,null,null,null,null,null,null,null,null,null,null,null,null,null,null,null,null,null,null,null,null,null,null,null,null,null,null,null,null,null,null,null,null,null,null,null,null,null,null,null,null,null,null,null,null,null,null,null,null,null,null,null,null,null,null,null,null,null,null,null,null,null,null,null,null,null,null,null,null,null,null,null,null,null,null,null,null,null,null,null,null,null,null,null,null,null,null,null,null,null,null,null,null,null,null,null,null,null,null,null,null,null,null,null,null,null,null,null,null,null,null,null,null,null,null,null,null,null,null,null,null,null,null,null,null,null,null,null,null,null,null,null,null,null,null,null,null,null,null,null,null,null,null,null,null,null,null,null,null,null,null,null,null,null,null,null,null,null,null,null,null,null,null,null,null,null,null,null,null,null,null,null,null,null,null,null,null,null,null,null,null,null,null,null,null,null,null,null,null,null,null,null,null,null,null,null,null,null,null,null,null,null,null,null,null,null,null,null,null,null,null,null,null,null,null,null,null,null,null,null,null,null,null,null,null,null,null,null,null,null,null,null,null,null,null,null,null,null,null,null,null,null,null,null,null,null,null,null,null,null,null,null,null,null,null,null,null,null,null,null,null,null,null,null,null,null,null,null,null,null,null,null,null,null,null,null,null,null,null,null,null,null,null,null,null,null,null,null,null,null,null,null,null,null,null,null,null,null,null,null,null,null,null,null,null,null,null,null,null,null,null,null,null,null,null,null,null,null,null,null,null,null,null,null,null,null,null,null,null,null,null,null,null,null,null,null,null,null,null,null,null,null,null,null,null,null,null,null,null,null,null,null,null,null,null,null,null,null,null,null,null,null,null,null,null,null,null,null,null,null,null,null,null,null,null,null,null,null,null,null,null,null,null,null,null,null,null,null,null,null,null,null,null,null,null,null,null,null,null,null,null,null,null,null,null,null,null,null,null,null,null,null,null,null,null,null,null,null,null,null,null,null,null,null,null,null,null,null,null,null,null,null,null,null,null,null,null,null,null,null,null,null,null,null,null,null,null,null,null,null,null,null,null,null,null,null,null,null,null,null,null,null,null,null,null,null,null,null,null,null,null,null,null,null,null,null,null,null,null,null,null,null,null,null,null,null,null,null,null,null,null,null,null,null,null,null,null,null,null,null,null,null,null,null,null,null,null,null,null,null,null,null,null,null,null,null,null,null,null,null,null,null,null,null,null,null,null,null,null,null,null,null,null,null,null,null,null,null,null,null,null,null,null,null,null,null,null,null,null,null,null,null,null,null,null,null,null,null,null,null,null,null,null,null,null,null,null,null,null,null,null,null,null,null,null,null,null,null,null,null,null,null,null,null,null,null,null,null,null,null,null,null,null,null,null,null,null,null,null,null,null,null,null,null,null,null,null,null,null,null,null,null,null,null,null,null,null,null,null,null,null,null,null,null,null,null,null,null,null,null,null,null,null,null,null,null,null,null,null,null,null,null,null,null,null,null,null,null,null,null,null,null,null,null,null,null,null,null,null,null,null,null,null,null,null,null,null,null,null,null,null,null,null,null,null,null,null,null,null,null,null,null,null,null,null,null,null,null,null,null,null,null,null,null,null,null,null,null,null,null,null,null,null,null,null,null,null,null,null,null,null,null,null,null,null,null,null,null,null,null,null,null,null,null,null,null,null,null,null,null,null,null,null,null,null,null,null,null,null,null,null,null,null,null,null,null,null,null,null,null,null,null,null,null,null,null,null,null,null,null,null,null,null,null,null,null,null,null,null,null,null,null,null,null,null,null,null,null,null,null,null,null,null,null,null,null,null,null,null,null,null,null,null,null,null,null,null,null,null,null,null,null,null,null,null,null,null,null,null,null,null,null,null,null,null,null,null,null,null,null,null,null,null,null,null,null,null,null,null,null,null,null,null,null,null,null,null,null,null,null,null,null,null,null,null,null,null,null,null,null,null,null,null,null,null,null,null,null,null,null,null,null,null,null,null,null,null,null,null,null,null,null,null,null,null,null,null,null,null,null,null,null,null,null,null,null,null,null,null,null,null,null,null,null,null,null,null,null,null,null,null,null,null,null,null,null,null,null,null,null,null,null,null,null,null,null,null,null,null,null,null,null,null,null,null,null,null,null,null,null,null,null,null,null,null,null,null,null,null,null,null,null,null,null,null,null,null,null,null,null,null,null,null,null,null,null,null,null,null,null,null,null,null,null,null,null,null,null,null,null,null,null,null,null,null,null,null,null,null,null,null,null,null,null,null,null,null,null,null,null,null,null,null,null,null,null,null,null,null,null,null,null,null,null,null,null,null,null,null,null,null,null,null,null,null,null,null,null,null,null,null,null,null,null,null,null,null,null,null,null,null,null,null,null,null,null,null,null,null,null,null,null,null,null,null,null,null,null,null,null,null,null,null,null,null,null,null,null,null,null,null,null,null,null,null,null,null,null,null,null,null,null,null,null,null,null,null,null,null,null,null,null,null,null,null,null,null,null,null,null,null,null,null,null,null,null,null,null,null,null,null,null,null,null,null,null,null,null,null,null,null,null,null,null,null,null,null,null,null,null,null,null,null,null,null,null,null,null,null,null,null,null,null,null,null,null,null,null,null,null,null,null,null,null,null,null,null,null,null,null,null,null,null,null,null,null,null,null,null,null,null,null,null,null,null,null,null,null,null,null,null,null,null,null,null,null,null,null,null,null,null,null,null,null,null,null,null,null,null,null,null,null,null,null,null,null,null,null,null,null,null,null,null,null,null,null,null,null,null,null,null,null,null,null,null,null,null,null,null,null,null,null,null,null,null,null,null,null,null,null,null,null,null,null,null,null,null,null,null,null,null,null,null,null,null,null,null,null,null,null,null,null,null,null,null,null,null,null,null,null,null,null,null,null,null,null,null,null,null,null,null,null,null,null,null,null,null,null,null,null,null,null,null,null,null,null,null,null,null,null,null,null,null,null,null,null,null,null,null,null,null,null,null,null,null,null,null,null,null,null,null,null,null,null,null,null,null,null,null,null,null,null,null,null,null,null,null,null,null,null,null,null,null,null,null,null,null,null,null,null,null,null,null,null,null,null,null,null,null,null,null,null,null,null,null,null,null,null,null,null,null,null,null,null,null,null,null,null,null,null,null,null,null,null,null,null,null,null,null,null,null,null,null,null,null,null,null,null,null,null,null,null,null,null,null,null,null,null,null,null,null,null,null,null,null,null,null,null,null,null,null,null,null,null,null,null,null,null,null,null,null,null,null,null,null,null,null,null,null,null,null,null,null,null,null,null,null,null,null,null,null,null,null,null,null,null,null,null,null,null,null,null,null,null,null,null,null,null,null,null,null,null,null,null,null,null,null,null,null,null,null,null,null,null,null,null,null,null,null,null,null,null,null,null,null,null,null,null,null,null,null,null,null,null,null,null,null,null,null,null,null,null,null,null,null,null,null,null,null,null,null,null,null,null,null,null,null,null,null,null,null,null,null,null,null,null,null,null,null,null,null,null,null,null,null,null,null,null,null,null,null,null,null,null,null,null,null,null,null,null,null,null,null,null,null,null,null,null,null,null,null,null,null,null,null,null,null,null,null,null,null,null,null,null,null,null,null,null,null,null,null,null,null,null,null,null,null,null,null,null,null,null,null,null,null,null,null,null,null,null,null,null,null,null,null,null,null,null,null,null,null,null,null,null,null,null,null,null,null,null,null,null,null,null,null,null,null,null,null,null,null,null,null,null,null,null,null,null,null,null,null,null,null,null,null,null,null,null,null,null,null,null,null,null,null,null,null,null,null,null,null,null,null,null,null,null,null,null,null,null,null,null,null,null,null,null,null,null,null,null,null,null,null,null,null,null,null,null,null,null,null,null,null,null,null,null,null,null,null,null,null,null,null,null,null,null,null,null,null,null,null,null,null,null,null,null,null,null,null,null,null,null,null,null,null,null,null,null,null,null,null,null,null,null,null,null,null,null,null,null,null,null,null,null,null,null,null,null,null,null,null,null,null,null,null,null,null,null,null,null,null,null,null,null,null,null,null,null,null,null,null,null,null,null,null,null,null,null,null,null,null,null,null,null,null,null,null,null,null,null,null,null,null,null,null,null,null,null,null,null,null,null,null,null,null,null,null,null,null,null,null,null,null,null,null,null,null,null,null,null,null,null,null,null,null,null,null,null,null,null,null,null,null,null,null,null,null,null,null,null,null,null,null,null,null,null,null,null,null,null,null,null,null,null,null,null,null,null,null,null,null,null,null,null,null,null,null,null,null,null,null,null,null,null,null,null,null,null,null,null,null,null,null,null,null,null,null,null,null,null,null,null,null,null,null,null,null,null,null,null,null,null,null,null,null,null,null,null,null,null,null,null,null,null,null,null,null,null,null,null,null,null,null,null,null,null,null,null,null,null,null,null,null,null,null,null,null,null,null,null,null,null,null,null,null,null,null,null,null,null,null,null,null,null,null,null,null,null,null,null,null,null,null,null,null,null,null,null,null,null,null,null,null,null,null,null,null,null,null,null,null,null,null,null,null,null,null,null,null,null,null,null,null,null,null,null,null,null,null,null,null,null,null,null,null,null,null,null,null,null,null,null,null,null,null,null,null,null,null,null,null,null,null,null,null,null,null,null,null,null,null,null,null,null,null,null,null,null,null,null,null,null,null,null,null,null,null,null,null,null,null,null,null,null,null,null,null,null,null,null,null,null,null,null,null,null,null,null,null,null,null,null,null,null,null,null,null,null,null,null,null,null,null,null,null,null,null,null,null,null,null,null,null,null,null,null,null,null,null,null,null,null,null,null,null,null,null,null,null,null,null,null,null,null,null,null,null,null,null,null,null,null,null,null,null,null,null,null,null,null,null,null,null,null,null,null,null,null,null,null,null,null,null,null,null,null,null,null,null,null,null,null,null,null,null,null,null,null,null,null,null,null,null,null,null,null,null,null,null,null,null,null,null,null,null,null,null,null,null,null,null,null,null,null,null,null,null,null,null,null,null,null,null,null,null,null,null,null,null,null,null,null,null,null,null,null,null,null,null,null,null,null,null,null,null,null,null,null,null,null,null,null,null,null,null,null,null,null,null,null,null,null,null,null,null,null,null,null,null,null,null,null,null,null,null,null,null,null,null,null,null,null,null,null,null,null,null,null,null,null,null,null,null,null,null,null,null,null,null,null,null,null,null,null,null,null,null,null,null,null,null,null,null,null,null,null,null,null,null,null,null,null,null,null,null,null,null,null,null,null,null,null,null,null,null,null,null,null,null,null,null,null,null,null,null,null,null,null,null,null,null,null,null,null,null,null,null,null,null,null,null,null,null,null,null,null,null,null,null,null,null,null,null,null,null,null,null,null,null,null,null,null,null,null,null,null,null,null,null,null,null,null,null,null,null,null,null,null,null,null,null,null,null,null,null,null,null,null,null,null,null,null,null,null,null,null,null,null,null,null,null,null,null,null,null,null,null,null,null,null,null,null,null,null,null,null,null,null,null,null,null,null,null,null,null,null,null,null,null,null,null,null,null,null,null,null,null,null,null,null,null,null,null,null,null,null,null,null,null,null,null,null,null,null,null,null,null,null,null,null,null,null,null,null,null,null,null,null,null,null,null,null,null,null,null,null,null,null,null,null,null,null,null,null,null,null,null,null,null,null,null,null,null,null,null,null,null,null,null,null,null,null,null,null,null,null,null,null,null,null,null,null,null,null,null,null,null,null,null,null,null,null,null,null,null,null,null,null,null,null,null,null,null,null,null,null,null,null,null,null,null,null,null,null,null,null,null,null,null,null,null,null,null,null,null,null,null,null,null,null,null,null,null,null,null,null,null,null,null,null,null,null,null,null,null,null,null,null,null,null,null,null,null,null,null,null,null,null,null,null,null,null,null,null,null,null,null,null,null,null,null,null,null,null,null,null,null,null,null,null,null,null,null,null,null,null,null,null,null,null,null,null,null,null,null,null,null,null,null,null,null,null,null,null,null,null,null,null,null,null,null,null,null,null,null,null,null,null,null,null,null,null,null,null,null,null,null,null,null,null,null,null,null,null,null,null,null,null,null,null,null,null,null,null,null,null,null,null,null,null,null,null,null,null,null,null,null,null,null,null,null,null,null,null,null,null,null,null,null,null,null,null,null,null,null,null,null,null,null,null,null,null,null,null,null,null,null,null,null,null,null,null,null,null,null,null,null,null,null,null,null,null,null,null,null,null,null,null,null,null,null,null,null,null,null,null,null,null,null,null,null,null,null,null,null,null,null,null,null,null,null,null,null,null,null,null,null,null,null,null,null,null,null,null,null,null,null,null,null,null,null,null,null,null,null,null,null,null,null,null,null,null,null,null,null,null,null,null,null,null,null,null,null,null,null,null,null,null,null,null,null,null,null,null,null,null,null,null,null,null,null,null,null,null,null,null,null,null,null,null,null,null,null,null,null,null,null,null,null,null,null,null,null,null,null,null,null,null,null,null,null,null,null,null,null,null,null,null,null,null,null,null,null,null,null,null,null,null,null,null,null,null,null,null,null,null,null,null,null,null,null,null,null,null,null,null,null,null,null,null,null,null,null,null,null,null,null,null,null,null,null,null,null,null,null,null,null,null,null,null,null,null,null,null,null,null,null,null,null,null,null,null,null,null,null,null,null,null,null,null,null,null,null,null,null,null,null,null,null,null,null,null,null,null,null,null,null,null,null,null,null,null,null,null,null,null,null,null,null,null,null,null,null,null,null,null,null,null,null,null,null,null,null,null,null,null,null,null,null,null,null,null,null,null,null,null,null,null,null,null,null,null,null,null,null,null,null,null,null,null,null,null,null,null,null,null,null,null,null,null,null,null,null,null,null,null,null,null,null,null,null,null,null,null,null,null,null,null,null,null,null,null,null,null,null,null,null,null,null,null,null,null,null,null,null,null,null,null,null,null,null,null,null,null,null,null,null,null,null,null,null,null,null,null,null,null,null,null,null,null,null,null,null,null,null,null,null,null,null,null,null,null,null,null,null,null,null,null,null,null,null,null,null,null,null,null,null,null,null,null,null,null,null,null,null,null,null,null,null,null,null,null,null,null,null,null,null,null,null,null,null,null,null,null,null,null,null,null,null,null,null,null,null,null,null,null,null,null,null,null,null,null,null,null,null,null,null,null,null,null,null,null,null,null,null,null,null,null,null,null,null,null,null,null,null,null,null,null,null,null,null,null,null,null,null,null,null,null,null,null,null,null,null,null,null,null,null,null,null,null,null,null,null,null,null,null,null,null,null,null,null,null,null,null,null,null,null,null,null,null,null,null,null,null,null,null,null,null,null,null,null,null,null,null,null,null,null,null,null,null,null,null,null,null,null,null,null,null,null,null,null,null,null,null,null,null,null,null,null,null,null,null,null,null,null,null,null,null,null,null,null,null,null,null,null,null,null,null,null,null,null,null,null,null,null,null,null,null,null,null,null,null,null,null,null,null,null,null,null,null,null,null,null,null,null,null,null,null,null,null,null,null,null,null,null,null,null,null,null,null,null,null,null,null,null,null,null,null,null,null,null,null,null,null,null,null,null,null,null,null,null,null,null,null,null,null,null,null,null,null,null,null,null,null,null,null,null,null,null,null,null,null,null,null,null,null,null,null,null,null,null,null,null,null,null,null,null,null,null,null,null,null,null,null,null,null,null,null,null,null,null,null,null,null,null,null,null,null,null,null,null,null,null,null,null,null,null,null,null,null,null,null,null,null,null,null,null,null,null,null,null,null,null,null,null,null,null,null,null,null,null,null,null,null,null,null,null,null,null,null,null,null,null,null,null,null,null,null,null,null,null,null,null,{"$f":"COUNT(C15:XFC15)","v":14}]
[{"$f":"IF(T16=T17,C16&\" - \"&C17,IF(T16=T15,C15&\" - \"&C16,C16))","v":"11 - 12"},{"$f":"G16","v":0},11]
[{"$f":"IF(T17=T18,C17&\" - \"&C18,IF(T17=T16,C16&\" - \"&C17,C17))","v":"12 - 13"},{"$f":"G17","v":0},12]
[{"$f":"IF(T18=T19,C18&\" - \"&C19,IF(T18=T17,C17&\" - \"&C18,C18))","v":"13 - 14"},{"$f":"G18","v":0},13]
["14-15",null,14]
[{"$f":"IF(T20=T21,C20&\" - \"&C21,IF(T20=T19,C19&\" - \"&C20,C20))","v":"15 - 16"},{"$f":"G20","v":0},15]
["16 - 17",null,16]
["17 - 18",null,17]
["18 - 19",{"$f":"G23","v":0},18]
["19 - 20",0,19]
["20 - 21",0,20]
["21 - 22",0,21]
["22 - 23",0,22]
["23 - 24",0,23]
["24 - 25",0,24]
["25 - ",0,25]
[]
[]
[null,null,null,"Ředitel závodu: Mgr. Zdena Langerová",null,null,null,"Hlavní rozhodčí: Mgr. Kateřina Valová",null,null,null,null,null,null,null,"Rozhodčí:"]

{"sheet":"Družstva","index":7,"n_rows":26,"n_cols":10,"rows_kept":26,"cut":false,"hidden":false,"merged":[]}
[null,null,null,"Memoriál Petry Urbáškové - 23. ročník"]
[null,null,null,"2018-04-24"]
[null,null,null,"Družstva"]
[]
[null,"Pořadí","Oddíl","Kategorie I.","Body","Kategorie II.","Body","Kategorie III.","Body","Celkem"]
[null,1,"TJ Sokol M.Ostrava 1","Pačutová Mahulena",26.05,"Hájková Barbora",33.950000000000003,"Schneiderová Barbora",33.950000000000003,{"$f":"E6+G6+I6","v":93.95}]
[null,2,"GK Šumperk","Hermannová Markéta",22.12,"Žandová Sabina",33.130000000000003,"Peterková Klára",33.9,{"$f":"E7+G7+I7","v":89.15}]
[null,3,"KSG SK Přerov","Kubová  Barbora",24.92,"Borková Christina",29.25,"Krumpholzová Justýna",24.25,{"$f":"E8+G8+I8","v":78.42}]
[null,4,"ŠK ŠG GY-TA Poprad","Šavelová Diana",22.18,"Husáková Daniela",26.86,"Groussard Sarah",18.100000000000001,{"$f":"E9+G9+I9","v":67.14}]
[null,5,null,null,null,null,null,null,null,{"$f":"E10+G10+I10","v":0}]
[null,6,null,null,null,null,null,null,null,{"$f":"E11+G11+I11","v":0}]
[null,7,null,null,null,null,null,null,null,{"$f":"E12+G12+I12","v":0}]
[null,8,null,null,null,null,null,null,null,{"$f":"E13+G13+I13","v":0}]
[null,9,null,null,null,null,null,null,null,{"$f":"E14+G14+I14","v":0}]
[null,10,null,null,null,null,null,null,null,{"$f":"E15+G15+I15","v":0}]
[null,11,null,null,null,null,null,null,null,{"$f":"E16+G16+I16","v":0}]
[null,12,null,null,null,null,null,null,null,{"$f":"E17+G17+I17","v":0}]
[null,13]
[null,14]
[null,15]
[null,16]
[null,17]
[null,18]
[null,19]
[null,20]
[null,21]

{"sheet":"List1","index":8,"n_rows":0,"n_cols":0,"rows_kept":0,"cut":false,"hidden":false,"merged":[]}